Workbook

Sheet Draft Decision changes
A1: Cells | B1: Decription of changes
A2: 'Cost Escalations' - row 3 | B2: Updated actual CPI in cells E3:F3 and forecast CPI in cell G3.
A3: 'Cost Escalations' - row 29 | B3: Substituted with our labour escalators consistent with ANS.

Sheet Cover page
A2: Energex Public Lighting Capex and Opex Forecasting Model
A3: 2025-30

Sheet Version Control
A1: RDP2025 Project: Public Lighting Expenditure Analysis Model
B4: Date | C4: Version | D4: Description of any updates made
B5: 2024-01-31 | C5: V1 | D5: Version submitted to the AER
B6: 2024-08-21 | C6: V2 | D6: AER - updated inflation figures and labour escalators

Sheet Intro
A1: Model developer | B1: Energex
A5: Purpose | B5: To provide capex and opex forecasts based on the 100% LED deployment during 2025-30 regulatory period.
A7: Colour chart | B7: Data | C7: Cells containing hard coded data
C8: Cell containing formula
C9: Cells to remain empty (non-applicable input/output)
B10: Assumptions | C10: Cells containing assumptions intended to be manipulated by model users
B11: Text | C11: Important notes providing details
C12: Cell highlighting particular attention
B13: Header 1 | C13: Fist header
B14: Header 2 | C14: Second header
B15: Header 3 | C15: Third hearder

Sheet >>General inputs

Sheet Cost Escalations
B1: 2019-20 | C1: 2020-21 | D1: 2021-22 | E1: 2022-23 | F1: 2023-24 | G1: 2024-25
B2: 2020-06-01 | C2: 2021-06-01 | D2: 2022-06-01 | E2: 2023-06-01 | F2: 2024-06-01 | G2: 2025-06-01
A3: Inflation | B3: -0.003484320557 | C3: 0.03846153846 | D3: 0.06144781145 | E3: 0.06 | F3: 0.038 | G3: 0.028 | J3: Sources used | L3: https://www.rba.gov.au/publications/smp/2024/aug/
L4: https://www.abs.gov.au/statistics/economy/price-indexes-and-inflation/consumer-price-index-australia/jun-quarter-2024
A5: Real to Real
B6: 2020-06-01 | C6: 2021-06-01 | D6: 2022-06-01 | E6: 2023-06-01 | F6: 2024-06-01 | G6: 2025-06-01
A7: 2020-06-01 | B7: =IF(AND($A7>B$6,ISNONTEXT($A7)),C7/(1+C$3),IF(AND($A7=B$6,B$6=B$2),1,IF(AND($A7<B$6,B$6=B$2),#REF!*(1+B$3),0))) -> 1 | C7: =IF(AND($A7>C$6,ISNONTEXT($A7)),D7/(1+D$3),IF(AND($A7=C$6,C$6=C$2),1,IF(AND($A7<C$6,C$6=C$2),B7*(1+C$3),0))) -> 1.038461538 | D7: 1.102272727 | E7: 1.168409091 | F7: 1.212808636 | G7: =IF(AND($A7>G$6,ISNONTEXT($A7)),'EGX - Gross Capex'!P8/(1+'EGX - Gross Capex'!P$4),IF(AND($A7=G$6,G$6=G$2),1,IF(AND($A7<G$6,G$6=G$2),F7*(1+G$3),0))) -> 1.246767278
A8: 2021-06-01 | B8: =IF(AND($A8>B$6,ISNONTEXT($A8)),C8/(1+C$3),IF(AND($A8=B$6,B$6=B$2),1,IF(AND($A8<B$6,B$6=B$2),#REF!*(1+B$3),0))) -> 0.962962963 | C8: 1 | D8: 1.061447811 | E8: 1.12513468 | F8: 1.167889798 | G8: =IF(AND($A8>G$6,ISNONTEXT($A8)),'EGX - Gross Capex'!P10/(1+'EGX - Gross Capex'!P$4),IF(AND($A8=G$6,G$6=G$2),1,IF(AND($A8<G$6,G$6=G$2),F8*(1+G$3),0))) -> 1.200590712
A9: 2022-06-01 | B9: =IF(AND($A9>B$6,ISNONTEXT($A9)),C9/(1+C$3),IF(AND($A9=B$6,B$6=B$2),1,IF(AND($A9<B$6,B$6=B$2),#REF!*(1+B$3),0))) -> 0.9072164948 | C9: 0.942109437 | D9: 1 | E9: 1.06 | F9: =IF(AND($A9>F$6,ISNONTEXT($A9)),G9/(1+G$3),IF(AND($A9=F$6,F$6=F$2),1,IF(AND($A9<F$6,F$6=F$2),E9*(1+F$3),0))) -> 1.10028 | G9: =IF(AND($A9>G$6,ISNONTEXT($A9)),'EGX - Gross Capex'!#REF!/(1+'EGX - Gross Capex'!P$4),IF(AND($A9=G$6,G$6=G$2),1,IF(AND($A9<G$6,G$6=G$2),F9*(1+G$3),0))) -> 1.13108784
A10: 2023-06-01 | B10: =IF(AND($A10>B$6,ISNONTEXT($A10)),C10/(1+C$3),IF(AND($A10=B$6,B$6=B$2),1,IF(AND($A10<B$6,B$6=B$2),#REF!*(1+B$3),0))) -> 0.8558646178 | C10: 0.8887824877 | D10: 0.9433962264 | E10: 1 | F10: 1.038 | G10: =IF(AND($A10>G$6,ISNONTEXT($A10)),'EGX - Gross Capex'!P12/(1+'EGX - Gross Capex'!P$4),IF(AND($A10=G$6,G$6=G$2),1,IF(AND($A10<G$6,G$6=G$2),F10*(1+G$3),0))) -> 1.067064
A11: 2024-06-01 | B11: =IF(AND($A11>B$6,ISNONTEXT($A11)),C11/(1+C$3),IF(AND($A11=B$6,B$6=B$2),1,IF(AND($A11<B$6,B$6=B$2),#REF!*(1+B$3),0))) -> 0.8245323871 | C11: 0.8562451712 | D11: 0.908859563 | E11: 0.9633911368 | F11: 1 | G11: =IF(AND($A11>G$6,ISNONTEXT($A11)),'EGX - Gross Capex'!P20/(1+'EGX - Gross Capex'!P$4),IF(AND($A11=G$6,G$6=G$2),1,IF(AND($A11<G$6,G$6=G$2),F11*(1+G$3),0))) -> 1.028
A12: 2025-06-01 | B12: =IF(AND($A12>B$6,ISNONTEXT($A12)),C12/(1+C$3),IF(AND($A12=B$6,B$6=B$2),1,IF(AND($A12<B$6,B$6=B$2),#REF!*(1+B$3),0))) -> 0.8020743065 | C12: 0.8329233183 | D12: 0.8841046333 | E12: 0.9371509113 | F12: 0.9727626459 | G12: =IF(AND($A12>G$6,ISNONTEXT($A12)),'EGX - Gross Capex'!P21/(1+'EGX - Gross Capex'!P$4),IF(AND($A12=G$6,G$6=G$2),1,IF(AND($A12<G$6,G$6=G$2),F12*(1+G$3),0))) -> 1
A14: Nominal to Real
B15: 2020-06-01 | C15: 2021-06-01 | D15: 2022-06-01 | E15: 2023-06-01 | F15: 2024-06-01 | G15: 2025-06-01
A16: 2020-06-01 | B16: =IF(AND(B$15=B$2,ISNONTEXT($A16)),1/B7*(1+B$3)^0.5,0) -> 0.9982563195 | C16: =IF(AND(C$15=C$2,ISNONTEXT($A16)),1/C7*(1+C$3)^0.5,0) -> 0.9813067629 | D16: =IF(AND(D$15=D$2,ISNONTEXT($A16)),1/D7*(1+D$3)^0.5,0) -> 0.9346742127 | E16: 0.8811665555 | F16: 0.8400524366 | G16: 0.8132258251
A17: 2021-06-01 | B17: =IF(AND(B$15=B$2,ISNONTEXT($A17)),1/B8*(1+B$3)^0.5,0) -> 1.036650793 | C17: 1.019049331 | D17: 0.9706232209 | E17: 0.9150575769 | F17: 0.8723621457 | G17: 0.8445037414
A18: 2022-06-01 | B18: 1.100350716 | C18: 1.081667682 | D18: 1.030265894 | E18: 0.9712858624 | F18: 0.9259668904 | G18: 0.8963966481
A19: 2023-06-01 | B19: 1.166371759 | C19: 1.146567743 | D19: 1.092081847 | E19: 1.029563014 | F19: 0.9815249038 | G19: 0.950180447
A20: 2024-06-01 | B20: 1.210693886 | C20: 1.190137317 | D20: 1.133580957 | E20: 1.068686409 | F20: 1.01882285 | G20: 0.9862873039
A21: 2025-06-01 | B21: 1.244593314 | C21: 1.223461162 | D21: 1.165321224 | E21: 1.098609628 | F21: 1.04734989 | G21: 1.013903348
A23: Real escalation
A24: Contractor | B24: 2025-26 | C24: 2026-27 | D24: 2027-28 | E24: 2028-29 | F24: 2029-30
A25: Escalation - Year on Year | B25: 0.0105 | C25: 0.0071 | D25: 0.0061 | E25: 0.0092 | F25: 0.0109 | G25: Source: BISOE report
A26: Escalation - Cumulative | B26: =PRODUCT(1+$B25:B25)-1 -> 0.0105 | C26: =PRODUCT(1+$B25:C25)-1 -> 0.01767455 | D26: =PRODUCT(1+$B25:D25)-1 -> 0.02388236475 | E26: =PRODUCT(1+$B25:E25)-1 -> 0.03330208251 | F26: =PRODUCT(1+$B25:F25)-1 -> 0.04456507521
A28: Labour | B28: 2025-26 | C28: 2026-27 | D28: 2027-28 | E28: 2028-29 | F28: 2029-30
A29: Escalation - Year on Year | B29: 0.01481650282 | C29: 0.009861100793 | D29: 0.008443651806 | E29: 0.01051247269 | F29: 0.01236745202 | G29: Source: BISOE report | J29: Source used | L29: Average of BISOE and Deloitte X factors (see ANS model)
A30: Escalation - Cumulative | B30: =PRODUCT(1+$B29:B29)-1 -> 0.01481650282 | C30: =PRODUCT(1+$B29:C29)-1 -> 0.02482371064 | D30: =PRODUCT(1+$B29:D29)-1 -> 0.03347696521 | E30: =PRODUCT(1+$B29:E29)-1 -> 0.04434136359 | F30: =PRODUCT(1+$B29:F29)-1 -> 0.05725720529

Sheet Ratios & Assumptions
A1: Table 1 - EGX ratios between major and minor roads
C2: 2025-26
A3: DNSP | B3: Road type | C3: Volume | D3: Ratio
A4: Energex | B4: Major | C4: =SUMIF('EGX - Yearly volume scenarios'!$C$5:$C$12,'Ratios & Assumptions'!$B4,'EGX - Yearly volume scenarios'!$G$5:$G$12) -> 97805 | D4: =C4/$C$6 -> 0.2849995338
A5: Energex | B5: Minor | C5: =SUMIF('EGX - Yearly volume scenarios'!$C$5:$C$12,'Ratios & Assumptions'!$B5,'EGX - Yearly volume scenarios'!$G$5:$G$12) -> 245371 | D5: =C5/$C$6 -> 0.7150004662
A6: Energex | B6: All | C6: =SUM(C4:C5) -> 343176 | D6: =SUM(D4:D5) -> 1
A7: Note:
A8: Allocation based on actual 2021-22 volumes
A9: Used to allocate expenditure between major and minor road types where the breakdown is not available
A11: Table 2 - EGX estimated annual growth rates
A12: DNSP | B12: Road | C12: Rate | D12: Rate
A13: All | B13: All | C13: 1 | D13: 0.025
A14: All | B14: All | C14: 2 | D14: 0.015
A15: Note:
A16: Different growth rates for Rate 1 and Rate 2

Sheet Overheads
A1: Table 1 - EGX Labour Oncosts
A2: DNSP | B2: Cost type | C2: Cost recovery | D2: FY2023
A3: Energex | B3: Labour Oncosts | C3: Labour only | D3: 0
A4: Energex | B4: All | C4: All | D4: =SUM(D3) -> 0
A6: Table 2 - EGX Material Oncosts
A7: DNSP | B7: Cost type | C7: Cost recovery | D7: FY2023
A8: Energex | B8: Material Oncosts | C8: Material only | D8: 0.08716716242
A9: Energex | B9: All | C9: All | D9: =SUM(D8) -> 0.08716716242
A11: Table 3 - EGX Fleet Oncosts
A12: DNSP | B12: Cost type | C12: Cost recovery | D12: FY2023
A13: Energex | B13: Fleet Oncost Indirects | C13: Labour only | D13: 0.1266957608
A14: Energex | B14: Fleet Oncost Depreciation | C14: Labour only | D14: 0.08494458414
A15: Energex | B15: All | C15: All | D15: =SUM(D13:D14) -> 0.2116403449
A17: Table 4 - EGX Network and Non-network Overheads
A18: DNSP | B18: Cost type | C18: Cost recovery | D18: FY2023
A19: Energex | B19: Network Overhead | C19: All Direct costs + Oncosts | D19: 0.1988679367
A20: Energex | B20: Non Network Overhead | C20: Labour only | D20: 0.4384935866
A21: Energex | B21: All | C21: All | D21: =SUM(D19:D20) -> 0.6373615233
A23: Table 5 - EGX Other Allocations
A24: DNSP | B24: Cost type | C24: Cost recovery | D24: FY2023
A25: Energex | B25: Non Network Depreciation | C25: Labour only | D25: 0.1470651253
A26: Energex | B26: Corporate Overhead | C26: All Direct Costs + Oncosts | D26: 0.1259652986
A27: Energex | B27: Market | C27: All Direct Costs + Oncosts | D27: 0.007240438044
A28: Energex | B28: Customer Ops | C28: All Direct Costs + Oncosts | D28: 0.06061743643
A29: Energex | B29: All | C29: All | D29: =SUM(D25:D28) -> 0.3408882984

Sheet >>Volumes

Sheet EGX - Yearly volume scenarios
A1: Table 1 - EGX Total public lighting asset base by tariffs to be converted from CONV to LED- yearly data as at 30 June | K1: 100% LED deployment by 2030
A2: 1.a - Number of public lights for LED conversion | E2: Previous period | F2: Current period | K2: Forthcoming period
E3: Actual | F3: Actual | G3: Actual | H3: Forecast | I3: Forecast | J3: Forecast | K3: Forecast | L3: Forecast | M3: Forecast | N3: Forecast | O3: Forecast
A4: DNSP | B4: Rate | C4: Road type | D4: Light type | E4: 2019-20 | F4: 2020-21 | G4: 2021-22 | H4: 2022-23 | I4: 2023-24 | J4: 2024-25 | K4: 2025-26 | L4: 2026-27 | M4: 2027-28 | N4: 2028-29 | O4: 2029-30
A5: Energex | B5: 1 | C5: Major | D5: CONV | E5: 39166 | F5: 38542 | G5: 38010 | H5: 32565 | I5: 25403 | J5: 19811 | K5: 17899 | L5: 13391 | M5: 9719 | N5: 6071 | O5: 0
A6: Energex | B6: 1 | C6: Major | D6: LED | E6: 1477 | F6: 2306 | G6: 3113 | H6: 8558 | I6: 15720 | J6: 21312 | K6: 23224 | L6: 27732 | M6: 31404 | N6: 35052 | O6: 41123
A7: Energex | B7: 1 | C7: Minor | D7: CONV | E7: 104697 | F7: 102204 | G7: 95466 | H7: 81790 | I7: 63801 | J7: 49755 | K7: 44844 | L7: 33549 | M7: 24351 | N7: 15211 | O7: 0 | P7: Removes the Nostalgia as these are to be converted to LED (see Table 3 below)
A8: Energex | B8: 1 | C8: Minor | D8: LED | E8: 4798 | F8: 7287 | G8: 13986 | H8: 27662 | I8: 45651 | J8: 59697 | K8: 64608 | L8: 75903 | M8: 85101 | N8: 94241 | O8: 109452
A9: Energex | B9: 2 | C9: Major | D9: CONV | E9: 52820 | F9: 52615 | G9: 52158 | H9: 49902 | I9: 44915 | J9: 40417 | K9: 36516 | L9: 27319 | M9: 19829 | N9: 12387 | O9: 0
A10: Energex | B10: 2A | C10: Major | D10: LED | E10: 2101 | F10: 3389 | G10: 4524 | H10: 6780 | I10: 11767 | J10: 16265 | K10: 20166 | L10: 29363 | M10: 36853 | N10: 44295 | O10: 56682
A11: Energex | B11: 2 | C11: Minor | D11: CONV | E11: 126472 | F11: 125346 | G11: 115984 | H11: 110967 | I11: 99877 | J11: 89874 | K11: 73032 | L11: 54638 | M11: 39657 | N11: 24772 | O11: 0 | P11: Removes the Nostalgia as these are to be converted to LED (see Table 3 below)
A12: Energex | B12: 2A | C12: Minor | D12: LED | E12: 6059 | F12: 8985 | G12: 19935 | H12: 24952 | I12: 36042 | J12: 46045 | K12: 62887 | L12: 81281 | M12: 96262 | N12: 111147 | O12: 135919
A13: Energex | B13: All | C13: All | D13: CONV | E13: =E5+E7+E9+E11 -> 323155 | F13: 318707 | G13: 301618 | H13: 275224 | I13: 233996 | J13: 199857 | K13: 172291 | L13: 128897 | M13: 93556 | N13: 58441 | O13: 0
A14: Energex | B14: All | C14: All | D14: LED | E14: =E6+E8+E10+E12 -> 14435 | F14: =F6+F8+F10+F12 -> 21967 | G14: =G6+G8+G10+G12 -> 41558 | H14: 67952 | I14: 109180 | J14: 143319 | K14: 170885 | L14: 214279 | M14: 249620 | N14: 284735 | O14: 343176
A15: Energex | B15: All | C15: All | D15: All | E15: =E13+E14 -> 337590 | F15: =F13+F14 -> 340674 | G15: 343176 | H15: 343176 | I15: 343176 | J15: 343176 | K15: =SUM(K5:K12) -> 343176 | L15: =SUM(L5:L12) -> 343176 | M15: =SUM(M5:M12) -> 343176 | N15: =SUM(N5:N12) -> 343176 | O15: =SUM(O5:O12) -> 343176
A16: Energex | B16: All | C16: All | D16: LED | E16: =E14/E15 -> 0.04275896798 | F16: =F14/F15 -> 0.06448099943 | G16: 0.121098212 | H16: 0.1980091848 | I16: 0.3181457911 | J16: 0.4176253584 | K16: =K14/K15 -> 0.4979514884 | L16: 0.6243997249 | M16: 0.7273818682 | N16: 0.8297054573 | O16: =O14/O15 -> 1
A17: Notes:
A18: CONV Minor volumes exclude Nostalgia volumes which are being converted to LED (see volumes in Table 4)
A19: No growth assumed for CONV to LED conversion program as the conversions are intended for the existing fleet of assets
A20: All Rate 1 CONV lights converted to LED remain Rate 1
A21: All Rate 2 CONV lights converted to LED and funded by ERG, will be assigned to Rate 2A
A23: Table 1.b - EGX Number of LED luminaire conversions each year | K23: 100% LED deployment by 2030
E24: Previous period | F24: Current period | K24: Forthcoming period
E25: Actual | F25: Actual | G25: Actual | H25: Forecast | I25: Forecast | J25: Forecast | K25: Forecast | L25: Forecast | M25: Forecast | N25: Forecast | O25: Forecast
A26: DNSP | B26: Rate | C26: Road type | D26: Light type | E26: 2019-20 | F26: 2020-21 | G26: 2021-22 | H26: 2022-23 | I26: 2023-24 | J26: 2024-25 | K26: 2025-26 | L26: 2026-27 | M26: 2027-28 | N26: 2028-29 | O26: 2029-30
A27: Energex | B27: 1 | C27: Major | D27: LED | F27: =F6-E6 -> 829 | G27: 807 | H27: 5445 | I27: 7162 | J27: 5592 | K27: 1912 | L27: 4508 | M27: 3672 | N27: 3648 | O27: 6071
A28: Energex | B28: 1 | C28: Minor | D28: LED | F28: =F8-E8 -> 2489 | G28: 6699 | H28: 13676 | I28: 17989 | J28: 14046 | K28: 4911 | L28: 11295 | M28: 9198 | N28: 9140 | O28: 15211
A29: Energex | B29: 2A | C29: Major | D29: LED | F29: =F10-E10 -> 1288 | G29: 1135 | H29: 2256 | I29: 4987 | J29: 4498 | K29: 3901 | L29: 9197 | M29: 7490 | N29: 7442 | O29: 12387
A30: Energex | B30: 2A | C30: Minor | D30: LED | F30: =F12-E12 -> 2926 | G30: 10950 | H30: 5017 | I30: 11090 | J30: 10003 | K30: 16842 | L30: 18394 | M30: 14981 | N30: 14885 | O30: 24772
A31: Energex | B31: All | C31: All | D31: LED | F31: =SUM(F27:F30) -> 7532 | G31: 19591 | H31: 26394 | I31: 41228 | J31: 34139 | K31: 27566 | L31: 43394 | M31: 35341 | N31: 35115 | O31: 58441
D32: Total LED volume | F32: =E14+F31 -> 21967 | G32: 41558 | H32: 67952 | I32: 109180 | J32: 143319 | K32: 170885 | L32: 214279 | M32: 249620 | N32: 284735 | O32: 343176
D33: Check | J33: Check | K33: =IF(K14-K32=0,0,1) -> 0 | L33: =IF(L14-L32=0,0,1) -> 0 | M33: =IF(M14-M32=0,0,1) -> 0 | N33: =IF(N14-N32=0,0,1) -> 0 | O33: =IF(O14-O32=0,0,1) -> 0
C34: Proportions | D34: LED | E34: Rate 1 | F34: =SUM(F27:F28)/SUM(F27:F30) -> 0.4405204461 | G34: 0.3831351131 | H34: 0.7244449496 | I34: 0.6100465703 | J34: 0.575236533 | K34: 0.2475150548 | L34: 0.3641747707 | M34: 0.3641662658 | N34: 0.3641748541 | O34: 0.3641621464
E35: Rate2A | F35: =1-F34 -> 0.5594795539 | G35: =1-G34 -> 0.6168648869 | H35: 0.2755550504 | I35: 0.3899534297 | J35: 0.424763467 | K35: =1-K34 -> 0.7524849452 | L35: 0.6358252293 | M35: 0.6358337342 | N35: 0.6358251459 | O35: 0.6358378536
A38: Table 1.c - EGX smoothed LED luminaire replacement volume/year (ensure the capex is smoothed over the 5 year cycle) | K38: 100% LED deployment by 2030
E39: Previous period | F39: Current period | K39: Forthcoming period
E40: Actual | F40: Actual | G40: Actual | H40: Forecast | I40: Forecast | J40: Forecast | K40: Forecast | L40: Forecast | M40: Forecast | N40: Forecast | O40: Forecast
A41: DNSP | B41: Rate | C41: Road type | D41: Light type | E41: 2019-20 | F41: 2020-21 | G41: 2021-22 | H41: 2022-23 | I41: 2023-24 | J41: 2024-25 | K41: 2025-26 | L41: 2026-27 | M41: 2027-28 | N41: 2028-29 | O41: 2029-30
A42: Energex | B42: 1 | C42: Major | D42: LED | K42: =ROUND(SUM($K27:$O27)/5,0) -> 3962 | L42: 3962 | M42: 3962 | N42: 3962 | O42: 3962
A43: Energex | B43: 1 | C43: Minor | D43: LED | K43: 9951 | L43: 9951 | M43: 9951 | N43: 9951 | O43: 9951
A44: Energex | B44: 2A | C44: Major | D44: LED | K44: 8083 | L44: 8083 | M44: 8083 | N44: 8083 | O44: 8083
A45: Energex | B45: 2A | C45: Minor | D45: LED | K45: 17975 | L45: 17975 | M45: 17975 | N45: 17975 | O45: 17975
A46: Energex | B46: All | C46: All | D46: LED | K46: =SUM(K42:K45) -> 39971 | L46: =SUM(L42:L45) -> 39971 | M46: =SUM(M42:M45) -> 39971 | N46: =SUM(N42:N45) -> 39971 | O46: =SUM(O42:O45) -> 39971
A47: Note:
A48: This table is based on Table 2 and smoothes the number of lights being converted a consistent yearly deployment
K51: 100% LED deployment by 2030
A52: 2- New public light intallations | E52: Previous period | F52: Current period | K52: Forthcoming period
E53: Actual | F53: Actual | G53: Actual | H53: Forecast | I53: Forecast | J53: Forecast | K53: Forecast | L53: Forecast | M53: Forecast | N53: Forecast | O53: Forecast
A54: DNSP | B54: Rate | C54: Road type | D54: Light type | E54: 2019-20 | F54: 2020-21 | G54: 2021-22 | H54: 2022-23 | I54: 2023-24 | J54: 2024-25 | K54: 2025-26 | L54: 2026-27 | M54: 2027-28 | N54: 2028-29 | O54: 2029-30
A55: Energex | B55: 1 | C55: Major | D55: LED | E55: 227.5334331 | F55: 280.4683435 | G55: 273.2983999 | H55: =ROUND(AVERAGE(E55:G55)*(1+'Ratios & Assumptions'!$D$13),0) -> 267 | I55: =ROUND(H55*(1+'Ratios & Assumptions'!$D$13),0) -> 274 | J55: =ROUND(I55*(1+'Ratios & Assumptions'!$D$13),0) -> 281 | K55: =ROUND(J55*(1+'Ratios & Assumptions'!$D$13),0) -> 288 | L55: =ROUND(K55*(1+'Ratios & Assumptions'!$D$13),0) -> 295 | M55: =ROUND(L55*(1+'Ratios & Assumptions'!$D$13),0) -> 302 | N55: =ROUND(M55*(1+'Ratios & Assumptions'!$D$13),0) -> 310 | O55: =ROUND(N55*(1+'Ratios & Assumptions'!$D$13),0) -> 318
B56: 1 | C56: Minor | D56: LED | E56: 317.5918703 | F56: 266.742353 | G56: 338.1190768 | H56: =ROUND(AVERAGE(E56:G56)*(1+'Ratios & Assumptions'!$D$14),0) -> 312 | I56: =ROUND(H56*(1+'Ratios & Assumptions'!$D$14),0) -> 317 | J56: =ROUND(I56*(1+'Ratios & Assumptions'!$D$14),0) -> 322 | K56: =ROUND(J56*(1+'Ratios & Assumptions'!$D$14),0) -> 327 | L56: =ROUND(K56*(1+'Ratios & Assumptions'!$D$14),0) -> 332 | M56: =ROUND(L56*(1+'Ratios & Assumptions'!$D$14),0) -> 337 | N56: =ROUND(M56*(1+'Ratios & Assumptions'!$D$14),0) -> 342 | O56: =ROUND(N56*(1+'Ratios & Assumptions'!$D$14),0) -> 347
A57: Energex | B57: All | C57: All | D57: LED | E57: =SUM(E55:E56) -> 545.1253034 | F57: 547.2106965 | G57: 611.4174767 | H57: 579 | I57: 591 | J57: 603 | K57: 615 | L57: 627 | M57: 639 | N57: 652 | O57: 665
A58: Notes: | G58: =G57-F57 -> 64.20678022
A59: All new installations are assumed to be LEDs
A60: Actual Rate 1 figures (2019-20 to 2021-22) are sourced from the Category Analysis RIN
K61: 100% LED deployment by 2030
A62: 3 - Conversion of Nostalgia lights from CONV to LED | E62: Previous period | F62: Current period | K62: Forthcoming period
E63: Actual | F63: Actual | G63: Actual | H63: Forecast | I63: Forecast | J63: Forecast | K63: Forecast | L63: Forecast | M63: Forecast | N63: Forecast | O63: Forecast
A64: DNSP | B64: Rate | C64: Road type | D64: Light type | E64: 2019-20 | F64: 2020-21 | G64: 2021-22 | H64: 2022-23 | I64: 2023-24 | J64: 2024-25 | K64: 2025-26 | L64: 2026-27 | M64: 2027-28 | N64: 2028-29 | O64: 2029-30
A65: Energex | B65: 1 | C65: Minor | D65: LED | K65: 108 | L65: 108 | M65: 108 | N65: 108 | O65: 108
B66: 2A | C66: Minor | D66: LED | K66: =8275-K65 -> 8167 | L66: 8167 | M66: 8167 | N66: =8275-N65 -> 8167 | O66: =8275-O65 -> 8167
A67: Energex | B67: All | C67: All | D67: LED | K67: =SUM(K65:K66) -> 8275 | L67: 8275 | M67: 8275 | N67: 8275 | O67: 8275
A68: Notes: | O68: =SUM(K67:O67) -> 41375
A69: Convert remaining 41375 Nostalgia lamps to LEDs over the 2025-30 period
A70: Existing Rate 2 Nostalgia lights converted to LED and funded by Ergon. Once converted the assets are assigned to Rate 2A
K71: 100% LED deployment by 2030
A72: 4 - Total public lighting asset base (table 1.a, table 2 and table 3 combined) | E72: Previous period | F72: Current period | K72: Forthcoming period
E73: Actual | F73: Actual | G73: Actual | H73: Forecast | I73: Forecast | J73: Forecast | K73: Forecast | L73: Forecast | M73: Forecast | N73: Forecast | O73: Forecast
A74: DNSP | B74: Rate | C74: Road type | D74: Light type | E74: 2019-20 | F74: 2020-21 | G74: 2021-22 | H74: 2022-23 | I74: 2023-24 | J74: 2024-25 | K74: 2025-26 | L74: 2026-27 | M74: 2027-28 | N74: 2028-29 | O74: 2029-30
A75: Energex | B75: 1 | C75: Major | D75: CONV | F75: =F5 -> 38542 | G75: 38010 | H75: 32565 | I75: 25403 | J75: 19811 | K75: 17899 | L75: 13391 | M75: 9719 | N75: 6071 | O75: 0
A76: Energex | B76: 1 | C76: Major | D76: LED | F76: =F6+F55 -> 2586.468343 | G76: =G6+G55 -> 3386.2984 | H76: =H6+H55 -> 8825 | I76: =I6+SUM(H55:I55) -> 16261 | J76: =J6+SUM(H55:J55) -> 22134 | K76: =K6+K55 -> 23512 | L76: =L6+SUM(K55:L55) -> 28315 | M76: =M6+SUM(K55:M55) -> 32289 | N76: =N6+SUM(K55:N55) -> 36247 | O76: =O6+SUM(K55:O55) -> 42636
A77: Energex | B77: 1 | C77: Minor | D77: CONV | F77: =F7 -> 102204 | G77: 95466 | H77: 81790 | I77: 63801 | J77: 49755 | K77: 44844 | L77: 33549 | M77: 24351 | N77: 15211 | O77: 0
A78: Energex | B78: 1 | C78: Minor | D78: LED | F78: =F8+F56 -> 7553.742353 | G78: =G8+G56 -> 14324.11908 | H78: =H8+H56 -> 27974 | I78: =I8+SUM(H56:I56) -> 46280 | J78: =J8+SUM(H56:J56) -> 60648 | K78: =K8+K56+K65 -> 65043 | L78: =L8+SUM(K56:L56)+L65 -> 76670 | M78: =M8+SUM(K56:M56)+M65 -> 86205 | N78: =N8+SUM(K56:N56)+N65 -> 95687 | O78: =O8+SUM(K56:O56)+O65 -> 111245
A79: Energex | B79: 2 | C79: Major | D79: CONV | F79: =F9 -> 52615 | G79: 52158 | H79: 49902 | I79: 44915 | J79: 40417 | K79: 36516 | L79: 27319 | M79: 19829 | N79: 12387 | O79: 0
A80: Energex | B80: 2A | C80: Major | D80: LED | F80: =F10 -> 3389 | G80: 4524 | H80: 6780 | I80: 11767 | J80: 16265 | K80: 20166 | L80: 29363 | M80: 36853 | N80: 44295 | O80: 56682
A81: Energex | B81: 2 | C81: Minor | D81: CONV | F81: =F11 -> 125346 | G81: 115984 | H81: 110967 | I81: 99877 | J81: 89874 | K81: 73032 | L81: 54638 | M81: 39657 | N81: 24772 | O81: 0
A82: Energex | B82: 2A | C82: Minor | D82: LED | F82: =F12 -> 8985 | G82: =G12 -> 19935 | H82: =H12 -> 24952 | I82: =I12 -> 36042 | J82: =J12 -> 46045 | K82: =K12+K66 -> 71054 | L82: =L12+L66 -> 89448 | M82: =M12+M66 -> 104429 | N82: =N12+N66 -> 119314 | O82: =O12+O66 -> 144086
A83: Energex | B83: All | C83: All | D83: CONV | F83: =SUMIF($D$75:$D$82,$D83,F$75:F$82) -> 318707 | G83: 301618 | H83: 275224 | I83: 233996 | J83: 199857 | K83: 172291 | L83: 128897 | M83: 93556 | N83: 58441 | O83: 0
A84: Energex | B84: All | C84: All | D84: LED | F84: 22514.2107 | G84: 42169.41748 | H84: 68531 | I84: 110350 | J84: 145092 | K84: 179775 | L84: 223796 | M84: 259776 | N84: 295543 | O84: 354649
A85: Energex | B85: All | C85: All | D85: All | F85: =SUM(F83:F84) -> 341221.2107 | G85: =G15+G65 -> 343176 | H85: =SUM(H83:H84) -> 343755 | I85: 344346 | J85: 344949 | K85: 352066 | L85: 352693 | M85: 353332 | N85: 353984 | O85: 354649
J86: Check | K86: =IF(K15+K57+K67-K85=0,0,1) -> 0 | L86: =IF(L15+SUM(K57,L57)+L67-L85=0,0,1) -> 0 | M86: =IF(M15+SUM(K57:M57)+M67-M85=0,0,1) -> 0 | N86: =IF(N15+SUM(K57:N57)+N67-N85=0,0,1) -> 0 | O86: =IF(O15+SUM(K57:O57)+O67-O85=0,0,1) -> 0
A87: Rate 1 and 2A proportion | B87: LED | C87: Rate 1 | G87: =((G76-F76)+(G78-F78))/((G76-F76)+(G78-F78)+(G80-F80)+(G82-F82)) -> 0.3851501979 | H87: 0.7241060929 | I87: 0.6155575217 | J87: 0.5826089459 | K87: 0.1664504224 | L87: 0.373230958 | M87: 0.3754585881 | N87: 0.3757653703 | O87: 0.3713159409
C88: Rate 2A | G88: =1-G87 -> 0.6148498021 | H88: 0.2758939071 | I88: 0.3844424783 | J88: 0.4173910541 | K88: =1-K87 -> 0.8335495776 | L88: 0.626769042 | M88: 0.6245414119 | N88: 0.6242346297 | O88: 0.6286840591
A89: Note:
A90: No to little growth assumed in Table 4 as the capex is for the conversion to LED of existing light population. Growth of 2.5% is included in Table 5
A91: Customer funded new installations removed from the Rate 2A tariff and included in Table 5 below to be treated separately
K92: 100% LED deployment by 2030
A93: Table 5 - Rate 2 customer contributed assets | E93: Previous period | F93: Current period | K93: Forthcoming period
E94: Actual | F94: Actual | G94: Actual | H94: Forecast | I94: Forecast | J94: Forecast | K94: Forecast | L94: Forecast | M94: Forecast | N94: Forecast | O94: Forecast
A95: DNSP | B95: Rate | C95: Road type | D95: Light type | E95: 2019-20 | F95: 2020-21 | G95: 2021-22 | H95: 2022-23 | I95: 2023-24 | J95: 2024-25 | K95: 2025-26 | L95: 2026-27 | M95: 2027-28 | N95: 2028-29 | O95: 2029-30
A96: New installations and new subdivisions
A97: Energex | B97: 2 | C97: Major | D97: LED | E97: 909 | F97: 1279 | G97: 1110 | H97: 1139 | I97: =H97*(1+'Ratios & Assumptions'!$D$13) -> 1167.475 | J97: =I97*(1+'Ratios & Assumptions'!$D$13) -> 1196.661875 | K97: =ROUND(J97*(1+'Ratios & Assumptions'!$D$13),0) -> 1227 | L97: =ROUND(K97*(1+'Ratios & Assumptions'!$D$13),0) -> 1258 | M97: =ROUND(L97*(1+'Ratios & Assumptions'!$D$13),0) -> 1289 | N97: =ROUND(M97*(1+'Ratios & Assumptions'!$D$13),0) -> 1321 | O97: =ROUND(N97*(1+'Ratios & Assumptions'!$D$13),0) -> 1354
B98: 2 | C98: Minor | D98: LED | E98: 1363 | F98: 1709 | G98: 2017 | H98: 2771 | I98: =H98*(1+'Ratios & Assumptions'!$D$14) -> 2812.565 | J98: =I98*(1+'Ratios & Assumptions'!$D$14) -> 2854.753475 | K98: =ROUND(J98*(1+'Ratios & Assumptions'!$D$14),0) -> 2898 | L98: =ROUND(K98*(1+'Ratios & Assumptions'!$D$14),0) -> 2941 | M98: =ROUND(L98*(1+'Ratios & Assumptions'!$D$14),0) -> 2985 | N98: =ROUND(M98*(1+'Ratios & Assumptions'!$D$14),0) -> 3030 | O98: =ROUND(N98*(1+'Ratios & Assumptions'!$D$14),0) -> 3075
A99: Rate 4 reassigned to Rate 2 on 1 July 2025
A100: Energex | B100: 2 | C100: Major | D100: LED | F100: 61 | G100: 184 | H100: =G100*(1+'Ratios & Assumptions'!$D$13) -> 188.6 | I100: =H100*(1+'Ratios & Assumptions'!$D$13) -> 193.315 | J100: =I100*(1+'Ratios & Assumptions'!$D$13) -> 198.147875 | K100: =ROUND($J$100,0) -> 198 | L100: =ROUND($J$100,0) -> 198 | M100: 198 | N100: 198 | O100: 198
B101: 2 | C101: Minor | D101: LED | F101: 274 | G101: 634 | H101: =G101*(1+'Ratios & Assumptions'!$D$13) -> 649.85 | I101: =H101*(1+'Ratios & Assumptions'!$D$13) -> 666.09625 | J101: =I101*(1+'Ratios & Assumptions'!$D$13) -> 682.7486562 | K101: =ROUND($J$101,0) -> 683 | L101: =ROUND($J$101,0) -> 683 | M101: 683 | N101: 683 | O101: 683
A102: Energex | B102: All | C102: Major | D102: LED | E102: =E97 -> 909 | F102: =F97 -> 1279 | G102: 1110 | H102: 1139 | I102: 1167.475 | J102: 1196.661875 | K102: =K97+K100 -> 1425 | L102: =L97+L100 -> 1456 | M102: 1487 | N102: 1519 | O102: 1552
C103: Minor | D103: LED | E103: =E98 -> 1363 | F103: =F98 -> 1709 | G103: 2017 | H103: 2771 | I103: 2812.565 | J103: 2854.753475 | K103: =K98+K101 -> 3581 | L103: =L98+L101 -> 3624 | M103: 3668 | N103: 3713 | O103: 3758
A104: Energex | B104: All | C104: All | D104: LED | E104: =E102+E103 -> 2272 | F104: =F102+F103 -> 2988 | G104: 3127 | H104: 3910 | I104: 3980.04 | J104: 4051.41535 | K104: 5006 | L104: 5080 | M104: 5155 | N104: 5232 | O104: 5310
A106: Notes:
A107: Historical 2019-20 to 2022-23 figures for Other Contributed assets, based on internal reports between 2019-20 to 2020-21, growth is relatively modest
A108: Historical 2019-20 to 2022-23 figures for New Installations based on RIN data
A109: Forecast growth rate of 2.5%

Sheet >>Unit Rates

Sheet EGX Unit Rates
A1: Table 1: Energex Public Light - Unit costs per luminaire
D2: Unit cost
A3: Activity type | B3: Asset type | C3: Cost categories | D3: $2022-23
D4: Actual
A5: Light installation | B5: steel underground decorative minor (typically Rate 2) | C5: Labour | D5: N/A
C6: Material | D6: N/A
C7: Contractor | D7: N/A
B8: Rate 1 Minor LED install | C8: Labour | D8: 506.2196263
C9: Material | D9: 841.1160602
C10: Contractor | D10: 3510.05854
B11: Rate 1 Major LED install | C11: Labour | D11: 856.4887263
C12: Material | D12: 3433.561058
C13: Contractor | D13: 5938.777187
B14: wood pole minor (Rate 1 and 2) | C14: Labour | D14: N/A
C15: Material | D15: N/A
C16: Contractor | D16: N/A
A17: Light replacement | B17: High Pressure Sodium - Major (Rate 1 and 2) | C17: Labour | D17: N/A
C18: Material | D18: N/A
C19: Contractor | D19: N/A
B20: High Pressure Sodium - Minor (Rate 1 and 2) | C20: Labour | D20: N/A
C21: Material | D21: N/A
C22: Contractor | D22: N/A
B23: LED Major | C23: Labour | D23: 0
C24: Material | D24: 584
C25: Contractor | D25: 75
B26: LED Minor | C26: Labour | D26: 0
C27: Material | D27: 197
C28: Contractor | D28: 75
B29: Nostalgia LED | C29: Labour | D29: 0
C30: Material | D30: 650
C31: Contractor | D31: 245

Sheet >>Forecast capex

Sheet EGX - Forecast capex scenarios
A2: Table 1 - EGX Light Replacement Capex - CONV to LED
A3: Real $2022-23 | F3: 100% LED deployment by 2030
F4: Forecast | G4: Forecast | H4: Forecast | I4: Forecast | J4: Forecast
A5: DNSP | B5: Rate | C5: Road type | D5: Light type | E5: Cost category | F5: 2025-26 | G5: 2026-27 | H5: 2027-28 | I5: 2028-29 | J5: 2029-30
A6: Energex | B6: 1 | C6: Major | D6: LED | E6: Labour | F6: ='EGX Unit Rates'!$D23*'EGX - Yearly volume scenarios'!K$42 -> 0 | G6: ='EGX Unit Rates'!$D23*'EGX - Yearly volume scenarios'!L$42 -> 0 | H6: ='EGX Unit Rates'!$D23*'EGX - Yearly volume scenarios'!M$42 -> 0 | I6: ='EGX Unit Rates'!$D23*'EGX - Yearly volume scenarios'!N$42 -> 0 | J6: ='EGX Unit Rates'!$D23*'EGX - Yearly volume scenarios'!O$42 -> 0
B7: 1 | C7: Major | D7: LED | E7: Material | F7: ='EGX Unit Rates'!$D24*'EGX - Yearly volume scenarios'!K$42 -> 2313808 | G7: ='EGX Unit Rates'!$D24*'EGX - Yearly volume scenarios'!L$42 -> 2313808 | H7: ='EGX Unit Rates'!$D24*'EGX - Yearly volume scenarios'!M$42 -> 2313808 | I7: ='EGX Unit Rates'!$D24*'EGX - Yearly volume scenarios'!N$42 -> 2313808 | J7: ='EGX Unit Rates'!$D24*'EGX - Yearly volume scenarios'!O$42 -> 2313808
B8: 1 | C8: Major | D8: LED | E8: Contractor | F8: ='EGX Unit Rates'!$D25*'EGX - Yearly volume scenarios'!K$42 -> 297150 | G8: ='EGX Unit Rates'!$D25*'EGX - Yearly volume scenarios'!L$42 -> 297150 | H8: ='EGX Unit Rates'!$D25*'EGX - Yearly volume scenarios'!M$42 -> 297150 | I8: ='EGX Unit Rates'!$D25*'EGX - Yearly volume scenarios'!N$42 -> 297150 | J8: ='EGX Unit Rates'!$D25*'EGX - Yearly volume scenarios'!O$42 -> 297150
A9: Energex | B9: 1 | C9: Minor | D9: LED | E9: Labour | F9: ='EGX Unit Rates'!$D26*'EGX - Yearly volume scenarios'!K$43 -> 0 | G9: ='EGX Unit Rates'!$D26*'EGX - Yearly volume scenarios'!L$43 -> 0 | H9: ='EGX Unit Rates'!$D26*'EGX - Yearly volume scenarios'!M$43 -> 0 | I9: ='EGX Unit Rates'!$D26*'EGX - Yearly volume scenarios'!N$43 -> 0 | J9: ='EGX Unit Rates'!$D26*'EGX - Yearly volume scenarios'!O$43 -> 0
B10: 1 | C10: Minor | D10: LED | E10: Material | F10: ='EGX Unit Rates'!$D27*'EGX - Yearly volume scenarios'!K$43 -> 1960347 | G10: ='EGX Unit Rates'!$D27*'EGX - Yearly volume scenarios'!L$43 -> 1960347 | H10: ='EGX Unit Rates'!$D27*'EGX - Yearly volume scenarios'!M$43 -> 1960347 | I10: ='EGX Unit Rates'!$D27*'EGX - Yearly volume scenarios'!N$43 -> 1960347 | J10: ='EGX Unit Rates'!$D27*'EGX - Yearly volume scenarios'!O$43 -> 1960347
B11: 1 | C11: Minor | D11: LED | E11: Contractor | F11: ='EGX Unit Rates'!$D28*'EGX - Yearly volume scenarios'!K$43 -> 746325 | G11: ='EGX Unit Rates'!$D28*'EGX - Yearly volume scenarios'!L$43 -> 746325 | H11: ='EGX Unit Rates'!$D28*'EGX - Yearly volume scenarios'!M$43 -> 746325 | I11: ='EGX Unit Rates'!$D28*'EGX - Yearly volume scenarios'!N$43 -> 746325 | J11: ='EGX Unit Rates'!$D28*'EGX - Yearly volume scenarios'!O$43 -> 746325
A12: Energex | B12: 2A | C12: Major | D12: LED | E12: Labour | F12: ='EGX Unit Rates'!$D23*'EGX - Yearly volume scenarios'!K$44 -> 0 | G12: ='EGX Unit Rates'!$D23*'EGX - Yearly volume scenarios'!L$44 -> 0 | H12: ='EGX Unit Rates'!$D23*'EGX - Yearly volume scenarios'!M$44 -> 0 | I12: ='EGX Unit Rates'!$D23*'EGX - Yearly volume scenarios'!N$44 -> 0 | J12: ='EGX Unit Rates'!$D23*'EGX - Yearly volume scenarios'!O$44 -> 0
B13: 2A | C13: Major | D13: LED | E13: Material | F13: ='EGX Unit Rates'!$D24*'EGX - Yearly volume scenarios'!K$44 -> 4720472 | G13: ='EGX Unit Rates'!$D24*'EGX - Yearly volume scenarios'!L$44 -> 4720472 | H13: ='EGX Unit Rates'!$D24*'EGX - Yearly volume scenarios'!M$44 -> 4720472 | I13: ='EGX Unit Rates'!$D24*'EGX - Yearly volume scenarios'!N$44 -> 4720472 | J13: ='EGX Unit Rates'!$D24*'EGX - Yearly volume scenarios'!O$44 -> 4720472
B14: 2A | C14: Major | D14: LED | E14: Contractor | F14: ='EGX Unit Rates'!$D25*'EGX - Yearly volume scenarios'!K$44 -> 606225 | G14: ='EGX Unit Rates'!$D25*'EGX - Yearly volume scenarios'!L$44 -> 606225 | H14: ='EGX Unit Rates'!$D25*'EGX - Yearly volume scenarios'!M$44 -> 606225 | I14: ='EGX Unit Rates'!$D25*'EGX - Yearly volume scenarios'!N$44 -> 606225 | J14: ='EGX Unit Rates'!$D25*'EGX - Yearly volume scenarios'!O$44 -> 606225
A15: Energex | B15: 2A | C15: Minor | D15: LED | E15: Labour | F15: ='EGX Unit Rates'!$D26*'EGX - Yearly volume scenarios'!K$45 -> 0 | G15: ='EGX Unit Rates'!$D26*'EGX - Yearly volume scenarios'!L$45 -> 0 | H15: ='EGX Unit Rates'!$D26*'EGX - Yearly volume scenarios'!M$45 -> 0 | I15: ='EGX Unit Rates'!$D26*'EGX - Yearly volume scenarios'!N$45 -> 0 | J15: ='EGX Unit Rates'!$D26*'EGX - Yearly volume scenarios'!O$45 -> 0
B16: 2A | C16: Minor | D16: LED | E16: Material | F16: ='EGX Unit Rates'!$D27*'EGX - Yearly volume scenarios'!K$45 -> 3541075 | G16: ='EGX Unit Rates'!$D27*'EGX - Yearly volume scenarios'!L$45 -> 3541075 | H16: ='EGX Unit Rates'!$D27*'EGX - Yearly volume scenarios'!M$45 -> 3541075 | I16: ='EGX Unit Rates'!$D27*'EGX - Yearly volume scenarios'!N$45 -> 3541075 | J16: ='EGX Unit Rates'!$D27*'EGX - Yearly volume scenarios'!O$45 -> 3541075
B17: 2A | C17: Minor | D17: LED | E17: Contractor | F17: ='EGX Unit Rates'!$D28*'EGX - Yearly volume scenarios'!K$45 -> 1348125 | G17: ='EGX Unit Rates'!$D28*'EGX - Yearly volume scenarios'!L$45 -> 1348125 | H17: ='EGX Unit Rates'!$D28*'EGX - Yearly volume scenarios'!M$45 -> 1348125 | I17: ='EGX Unit Rates'!$D28*'EGX - Yearly volume scenarios'!N$45 -> 1348125 | J17: ='EGX Unit Rates'!$D28*'EGX - Yearly volume scenarios'!O$45 -> 1348125
A18: Energex | B18: 1 | C18: All | D18: LED | E18: Labour | F18: =F6+F9 -> 0 | G18: 0 | H18: 0 | I18: 0 | J18: 0
B19: 1 | C19: All | D19: LED | E19: Material | F19: =SUMIFS(F$6:F$17,$B$6:$B$17,$B19,$E$6:$E$17,$E19) -> 4274155 | G19: 4274155 | H19: 4274155 | I19: 4274155 | J19: 4274155
B20: 1 | C20: All | D20: LED | E20: Contractor | F20: 1043475 | G20: 1043475 | H20: 1043475 | I20: 1043475 | J20: 1043475
A21: Energex | B21: 2A | C21: All | D21: LED | E21: Labour | F21: 0 | G21: 0 | H21: 0 | I21: 0 | J21: 0
B22: 2A | C22: All | D22: LED | E22: Material | F22: 8261547 | G22: 8261547 | H22: 8261547 | I22: 8261547 | J22: 8261547
B23: 2A | C23: All | D23: LED | E23: Contractor | F23: 1954350 | G23: 1954350 | H23: 1954350 | I23: 1954350 | J23: 1954350
A24: Energex | B24: All | C24: All | D24: LED | E24: Labour | F24: =F18+F21 -> 0 | G24: 0 | H24: 0 | I24: 0 | J24: 0
B25: All | C25: All | D25: LED | E25: Material | F25: =F19+F22 -> 12535702 | G25: 12535702 | H25: 12535702 | I25: 12535702 | J25: 12535702
B26: All | C26: All | D26: LED | E26: Contractor | F26: 2997825 | G26: 2997825 | H26: 2997825 | I26: 2997825 | J26: 2997825
A27: Energex | B27: All | C27: All | D27: LED | E27: All | F27: =SUM(F24:F26) -> 15533527 | G27: 15533527 | H27: 15533527 | I27: 15533527 | J27: 15533527
A29: Table 2 - EGX Light Replacement Capex - CONV to CONV
A30: Real $2022-23 (direct costs) | F30: 100% LED deployment by 2030
F31: Forecast | G31: Forecast | H31: Forecast | I31: Forecast | J31: Forecast
A32: DNSP | B32: Rate | C32: Road Type | D32: Light type | E32: Cost category | F32: 2025-26 | G32: 2026-27 | H32: 2027-28 | I32: 2028-29 | J32: 2029-30
A33: Energex | B33: 1 | C33: Major | D33: CONV | E33: Labour | F33: 0 | G33: 0 | H33: 0 | I33: 0 | J33: 0 | K33: No like for like replacements for conventional assets for 2025-30
B34: 1 | C34: Major | D34: CONV | E34: Material | F34: 0 | G34: 0 | H34: 0 | I34: 0 | J34: 0 | K34: No like for like replacements for conventional assets for 2025-30
B35: 1 | C35: Major | D35: CONV | E35: Contractor | F35: 0 | G35: 0 | H35: 0 | I35: 0 | J35: 0 | K35: No like for like replacements for conventional assets for 2025-30
A36: Energex | B36: 1 | C36: Minor | D36: CONV | E36: Labour | F36: 0 | G36: 0 | H36: 0 | I36: 0 | J36: 0 | K36: No like for like replacements for conventional assets for 2025-30
B37: 1 | C37: Minor | D37: CONV | E37: Material | F37: 0 | G37: 0 | H37: 0 | I37: 0 | J37: 0 | K37: No like for like replacements for conventional assets for 2025-30
B38: 1 | C38: Minor | D38: CONV | E38: Contractor | F38: 0 | G38: 0 | H38: 0 | I38: 0 | J38: 0 | K38: No like for like replacements for conventional assets for 2025-30
A39: Energex | B39: 2 | C39: Major | D39: CONV | E39: Labour | F39: 0 | G39: 0 | H39: 0 | I39: 0 | J39: 0 | K39: No like for like replacements for conventional assets for 2025-30
B40: 2 | C40: Major | D40: CONV | E40: Material | F40: 0 | G40: 0 | H40: 0 | I40: 0 | J40: 0 | K40: No like for like replacements for conventional assets for 2025-30
B41: 2 | C41: Major | D41: CONV | E41: Contractor | F41: 0 | G41: 0 | H41: 0 | I41: 0 | J41: 0 | K41: No like for like replacements for conventional assets for 2025-30
A42: Energex | B42: 2 | C42: Minor | D42: CONV | E42: Labour | F42: 0 | G42: 0 | H42: 0 | I42: 0 | J42: 0 | K42: No like for like replacements for conventional assets for 2025-30
B43: 2 | C43: Minor | D43: CONV | E43: Material | F43: 0 | G43: 0 | H43: 0 | I43: 0 | J43: 0 | K43: No like for like replacements for conventional assets for 2025-30
B44: 2 | C44: Minor | D44: CONV | E44: Contractor | F44: 0 | G44: 0 | H44: 0 | I44: 0 | J44: 0 | K44: No like for like replacements for conventional assets for 2025-30
A45: Energex | B45: 1 | C45: All | D45: CONV | E45: Labour | F45: =SUMIFS(F$33:F$44,$B$33:$B$44,$B45,$E$33:$E$44,$E45) -> 0 | G45: 0 | H45: 0 | I45: 0 | J45: 0
B46: 1 | C46: All | D46: CONV | E46: Material | F46: =SUMIFS(F$33:F$44,$B$33:$B$44,$B46,$E$33:$E$44,$E46) -> 0 | G46: 0 | H46: 0 | I46: 0 | J46: 0
B47: 1 | C47: All | D47: CONV | E47: Contractor | F47: 0 | G47: 0 | H47: 0 | I47: 0 | J47: 0
A48: Energex | B48: 2 | C48: All | D48: CONV | E48: Labour | F48: 0 | G48: 0 | H48: 0 | I48: 0 | J48: 0
B49: 2 | C49: All | D49: CONV | E49: Material | F49: 0 | G49: 0 | H49: 0 | I49: 0 | J49: 0
B50: 2 | C50: All | D50: CONV | E50: Contractor | F50: 0 | G50: 0 | H50: 0 | I50: 0 | J50: 0
A51: Energex | B51: All | C51: All | D51: CONV | E51: Labour | F51: =SUMIF($E$33:$E$44,$E51,F$33:F$44) -> 0 | G51: 0 | H51: 0 | I51: 0 | J51: 0
B52: All | C52: All | D52: CONV | E52: Material | F52: =SUMIF($E$33:$E$44,$E52,F$33:F$44) -> 0 | G52: 0 | H52: 0 | I52: 0 | J52: 0
B53: All | C53: All | D53: CONV | E53: Contractor | F53: 0 | G53: 0 | H53: 0 | I53: 0 | J53: 0
A54: Energex | B54: All | C54: All | D54: CONV | E54: All | F54: =SUM(F51:F53) -> 0 | G54: 0 | H54: 0 | I54: 0 | J54: 0
A55: Note:
A56: Assumed $0 given that Energy Qld does not have any stocks of conventional lights
A58: Table 3 - EGX Light Installation Capex
A59: Real $2022-23 (direct costs) | F59: 100% LED deployment by 2030
F60: Forecast | G60: Forecast | H60: Forecast | I60: Forecast | J60: Forecast
A61: DNSP | B61: Rate | C61: Road type | D61: Light type | E61: Cost category | F61: 2025-26 | G61: 2026-27 | H61: 2027-28 | I61: 2028-29 | J61: 2029-30
A62: Energex | B62: 1 | C62: Major | D62: LED | E62: Labour | F62: ='EGX - Yearly volume scenarios'!K$55*'EGX Unit Rates'!$D11 -> 246668.7532 | G62: ='EGX - Yearly volume scenarios'!L$55*'EGX Unit Rates'!$D11 -> 252664.1743 | H62: ='EGX - Yearly volume scenarios'!M$55*'EGX Unit Rates'!$D11 -> 258659.5953 | I62: ='EGX - Yearly volume scenarios'!N$55*'EGX Unit Rates'!$D11 -> 265511.5052 | J62: ='EGX - Yearly volume scenarios'!O$55*'EGX Unit Rates'!$D11 -> 272363.415
B63: 1 | C63: Major | D63: LED | E63: Material | F63: ='EGX - Yearly volume scenarios'!K$55*'EGX Unit Rates'!$D12 -> 988865.5848 | G63: ='EGX - Yearly volume scenarios'!L$55*'EGX Unit Rates'!$D12 -> 1012900.512 | H63: ='EGX - Yearly volume scenarios'!M$55*'EGX Unit Rates'!$D12 -> 1036935.44 | I63: ='EGX - Yearly volume scenarios'!N$55*'EGX Unit Rates'!$D12 -> 1064403.928 | J63: ='EGX - Yearly volume scenarios'!O$55*'EGX Unit Rates'!$D12 -> 1091872.417
B64: 1 | C64: Major | D64: LED | E64: Contractor | F64: ='EGX - Yearly volume scenarios'!K$55*'EGX Unit Rates'!$D13 -> 1710367.83 | G64: ='EGX - Yearly volume scenarios'!L$55*'EGX Unit Rates'!$D13 -> 1751939.27 | H64: ='EGX - Yearly volume scenarios'!M$55*'EGX Unit Rates'!$D13 -> 1793510.71 | I64: ='EGX - Yearly volume scenarios'!N$55*'EGX Unit Rates'!$D13 -> 1841020.928 | J64: ='EGX - Yearly volume scenarios'!O$55*'EGX Unit Rates'!$D13 -> 1888531.145
A65: Energex | B65: 1 | C65: Minor | D65: LED | E65: Labour | F65: ='EGX - Yearly volume scenarios'!K$56*'EGX Unit Rates'!$D8 -> 165533.8178 | G65: ='EGX - Yearly volume scenarios'!L$56*'EGX Unit Rates'!$D8 -> 168064.9159 | H65: ='EGX - Yearly volume scenarios'!M$56*'EGX Unit Rates'!$D8 -> 170596.0141 | I65: ='EGX - Yearly volume scenarios'!N$56*'EGX Unit Rates'!$D8 -> 173127.1122 | J65: ='EGX - Yearly volume scenarios'!O$56*'EGX Unit Rates'!$D8 -> 175658.2103
B66: 1 | C66: Minor | D66: LED | E66: Material | F66: ='EGX - Yearly volume scenarios'!K$56*'EGX Unit Rates'!$D9 -> 275044.9517 | G66: ='EGX - Yearly volume scenarios'!L$56*'EGX Unit Rates'!$D9 -> 279250.532 | H66: ='EGX - Yearly volume scenarios'!M$56*'EGX Unit Rates'!$D9 -> 283456.1123 | I66: ='EGX - Yearly volume scenarios'!N$56*'EGX Unit Rates'!$D9 -> 287661.6926 | J66: ='EGX - Yearly volume scenarios'!O$56*'EGX Unit Rates'!$D9 -> 291867.2729
B67: 1 | C67: Minor | D67: LED | E67: Contractor | F67: ='EGX - Yearly volume scenarios'!K$56*'EGX Unit Rates'!$D10 -> 1147789.143 | G67: ='EGX - Yearly volume scenarios'!L$56*'EGX Unit Rates'!$D10 -> 1165339.435 | H67: ='EGX - Yearly volume scenarios'!M$56*'EGX Unit Rates'!$D10 -> 1182889.728 | I67: ='EGX - Yearly volume scenarios'!N$56*'EGX Unit Rates'!$D10 -> 1200440.021 | J67: ='EGX - Yearly volume scenarios'!O$56*'EGX Unit Rates'!$D10 -> 1217990.313
A68: Energex | B68: 2A | C68: Major | D68: LED | E68: Labour | F68: 0 | G68: 0 | H68: 0 | I68: 0 | J68: 0 | K68: Assumes customers or real estate developers are funding the upfront capex to install new lights
B69: 2A | C69: Major | D69: LED | E69: Material | F69: 0 | G69: 0 | H69: 0 | I69: 0 | J69: 0 | K69: Assumes customers or real estate developers are funding the upfront capex to install new lights
B70: 2A | C70: Major | D70: LED | E70: Contractor | F70: 0 | G70: 0 | H70: 0 | I70: 0 | J70: 0 | K70: Assumes customers or real estate developers are funding the upfront capex to install new lights
A71: Energex | B71: 2A | C71: Minor | D71: LED | E71: Labour | F71: 0 | G71: 0 | H71: 0 | I71: 0 | J71: 0 | K71: Assumes customers or real estate developers are funding the upfront capex to install new lights
B72: 2A | C72: Minor | D72: LED | E72: Material | F72: 0 | G72: 0 | H72: 0 | I72: 0 | J72: 0 | K72: Assumes customers or real estate developers are funding the upfront capex to install new lights
B73: 2A | C73: Minor | D73: LED | E73: Contractor | F73: 0 | G73: 0 | H73: 0 | I73: 0 | J73: 0 | K73: Assumes customers or real estate developers are funding the upfront capex to install new lights
A74: Energex | B74: 1 | C74: All | D74: LED | E74: Labour | F74: =SUMIFS(F$62:F$73,$B$62:$B$73,$B74,$E$62:$E$73,$E74) -> 412202.571 | G74: 420729.0902 | H74: 429255.6094 | I74: 438638.6174 | J74: 448021.6253
B75: 1 | C75: All | D75: LED | E75: Material | F75: =SUMIFS(F$62:F$73,$B$62:$B$73,$B75,$E$62:$E$73,$E75) -> 1263910.536 | G75: 1292151.044 | H75: 1320391.552 | I75: 1352065.621 | J75: 1383739.689
B76: 1 | C76: All | D76: LED | E76: Contractor | F76: 2858156.972 | G76: 2917278.705 | H76: 2976400.438 | I76: 3041460.949 | J76: 3106521.459
A77: Energex | B77: 2A | C77: All | D77: LED | E77: Labour | F77: 0 | G77: 0 | H77: 0 | I77: 0 | J77: 0
B78: 2A | C78: All | D78: LED | E78: Material | F78: 0 | G78: 0 | H78: 0 | I78: 0 | J78: 0
B79: 2A | C79: All | D79: LED | E79: Contractor | F79: 0 | G79: 0 | H79: 0 | I79: 0 | J79: 0
A80: Energex | B80: All | C80: All | D80: LED | E80: Labour | F80: =SUMIF($E$62:$E$73,$E80,F$62:F$73) -> 412202.571 | G80: 420729.0902 | H80: 429255.6094 | I80: 438638.6174 | J80: 448021.6253
B81: All | C81: All | D81: LED | E81: Material | F81: =SUMIF($E$62:$E$73,$E81,F$62:F$73) -> 1263910.536 | G81: 1292151.044 | H81: 1320391.552 | I81: 1352065.621 | J81: 1383739.689
B82: All | C82: All | D82: LED | E82: Contractor | F82: 2858156.972 | G82: 2917278.705 | H82: 2976400.438 | I82: 3041460.949 | J82: 3106521.459
A83: Energex | B83: All | C83: All | D83: LED | E83: All | F83: =SUM(F80:F82) -> 4534270.08 | G83: =SUM(G80:G82) -> 4630158.84 | H83: 4726047.6 | I83: 4832165.187 | J83: 4938282.773
A86: Table 4 - EGX Nostalgia Replacement Capex
A87: Real $2022-23 (direct costs) | F87: 100% LED deployment by 2030
F88: Forecast | G88: Forecast | H88: Forecast | I88: Forecast | J88: Forecast
A89: DNSP | B89: Rate | C89: Road type | D89: Light type | E89: Cost category | F89: 2025-26 | G89: 2026-27 | H89: 2027-28 | I89: 2028-29 | J89: 2029-30
A90: Energex | B90: 1 | C90: Minor | D90: LED | E90: Labour | F90: ='EGX - Yearly volume scenarios'!K$65*'EGX Unit Rates'!$D29 -> 0 | G90: ='EGX - Yearly volume scenarios'!L$65*'EGX Unit Rates'!$D29 -> 0 | H90: ='EGX - Yearly volume scenarios'!M$65*'EGX Unit Rates'!$D29 -> 0 | I90: ='EGX - Yearly volume scenarios'!N$65*'EGX Unit Rates'!$D29 -> 0 | J90: ='EGX - Yearly volume scenarios'!O$65*'EGX Unit Rates'!$D29 -> 0
B91: 1 | C91: Minor | D91: LED | E91: Material | F91: ='EGX - Yearly volume scenarios'!K$65*'EGX Unit Rates'!$D30 -> 70200 | G91: ='EGX - Yearly volume scenarios'!L$65*'EGX Unit Rates'!$D30 -> 70200 | H91: ='EGX - Yearly volume scenarios'!M$65*'EGX Unit Rates'!$D30 -> 70200 | I91: ='EGX - Yearly volume scenarios'!N$65*'EGX Unit Rates'!$D30 -> 70200 | J91: ='EGX - Yearly volume scenarios'!O$65*'EGX Unit Rates'!$D30 -> 70200
B92: 1 | C92: Minor | D92: LED | E92: Contractor | F92: ='EGX - Yearly volume scenarios'!K$65*'EGX Unit Rates'!$D31 -> 26460 | G92: ='EGX - Yearly volume scenarios'!L$65*'EGX Unit Rates'!$D31 -> 26460 | H92: ='EGX - Yearly volume scenarios'!M$65*'EGX Unit Rates'!$D31 -> 26460 | I92: ='EGX - Yearly volume scenarios'!N$65*'EGX Unit Rates'!$D31 -> 26460 | J92: ='EGX - Yearly volume scenarios'!O$65*'EGX Unit Rates'!$D31 -> 26460
A93: Energex | B93: 2A | C93: Minor | D93: LED | E93: Labour | F93: ='EGX - Yearly volume scenarios'!K$66*'EGX Unit Rates'!$D29 -> 0 | G93: ='EGX - Yearly volume scenarios'!L$66*'EGX Unit Rates'!$D29 -> 0 | H93: ='EGX - Yearly volume scenarios'!M$66*'EGX Unit Rates'!$D29 -> 0 | I93: ='EGX - Yearly volume scenarios'!N$66*'EGX Unit Rates'!$D29 -> 0 | J93: ='EGX - Yearly volume scenarios'!O$66*'EGX Unit Rates'!$D29 -> 0
B94: 2A | C94: Minor | D94: LED | E94: Material | F94: ='EGX - Yearly volume scenarios'!K$66*'EGX Unit Rates'!$D30 -> 5308550 | G94: ='EGX - Yearly volume scenarios'!L$66*'EGX Unit Rates'!$D30 -> 5308550 | H94: ='EGX - Yearly volume scenarios'!M$66*'EGX Unit Rates'!$D30 -> 5308550 | I94: ='EGX - Yearly volume scenarios'!N$66*'EGX Unit Rates'!$D30 -> 5308550 | J94: ='EGX - Yearly volume scenarios'!O$66*'EGX Unit Rates'!$D30 -> 5308550
B95: 2A | C95: Minor | D95: LED | E95: Contractor | F95: ='EGX - Yearly volume scenarios'!K$66*'EGX Unit Rates'!$D31 -> 2000915 | G95: ='EGX - Yearly volume scenarios'!L$66*'EGX Unit Rates'!$D31 -> 2000915 | H95: ='EGX - Yearly volume scenarios'!M$66*'EGX Unit Rates'!$D31 -> 2000915 | I95: ='EGX - Yearly volume scenarios'!N$66*'EGX Unit Rates'!$D31 -> 2000915 | J95: ='EGX - Yearly volume scenarios'!O$66*'EGX Unit Rates'!$D31 -> 2000915
A96: Energex | B96: All | C96: All | D96: All | E96: Labour | F96: =F90+F93 -> 0 | G96: 0 | H96: 0 | I96: 0 | J96: 0
B97: All | C97: All | D97: All | E97: Material | F97: =F91+F94 -> 5378750 | G97: 5378750 | H97: 5378750 | I97: 5378750 | J97: 5378750
B98: All | C98: All | D98: All | E98: Contractor | F98: =F92+F95 -> 2027375 | G98: 2027375 | H98: 2027375 | I98: 2027375 | J98: 2027375
A99: Energex | B99: All | C99: All | D99: All | E99: All | F99: =SUM(F96:F98) -> 7406125 | G99: 7406125 | H99: 7406125 | I99: 7406125 | J99: 7406125
A101: Table 5 - EGX Pole replacements
A102: Real $2022-23 (direct costs) | F102: 100% LED deployment by 2030
F103: Forecast | G103: Forecast | H103: Forecast | I103: Forecast | J103: Forecast
A104: DNSP | B104: Rate | C104: Road type | D104: Light type | E104: Cost category | F104: 2025-26 | G104: 2026-27 | H104: 2027-28 | I104: 2028-29 | J104: 2029-30
A105: Energex | B105: 1 | C105: Major | D105: All | E105: Labour | F105: 0 | G105: 0 | H105: 0 | I105: 0 | J105: 0
B106: 1 | C106: Major | D106: All | E106: Material | F106: 0 | G106: 0 | H106: 0 | I106: 0 | J106: 0
B107: 1 | C107: Major | D107: All | E107: Contractor | F107: 0 | G107: 0 | H107: 0 | I107: 0 | J107: 0
B108: 1 | C108: Minor | D108: All | E108: Labour | F108: 0 | G108: 0 | H108: 0 | I108: 0 | J108: 0
B109: 1 | C109: Minor | D109: All | E109: Material | F109: 0 | G109: 0 | H109: 0 | I109: 0 | J109: 0
B110: 1 | C110: Minor | D110: All | E110: Contractor | F110: 0 | G110: 0 | H110: 0 | I110: 0 | J110: 0
A111: Energex | B111: 2 | C111: Major | D111: All | E111: Labour | F111: 0 | G111: 0 | H111: 0 | I111: 0 | J111: 0
B112: 2 | C112: Major | D112: All | E112: Material | F112: 0 | G112: 0 | H112: 0 | I112: 0 | J112: 0
B113: 2 | C113: Major | D113: All | E113: Contractor | F113: 0 | G113: 0 | H113: 0 | I113: 0 | J113: 0
B114: 2 | C114: Minor | D114: All | E114: Labour | F114: 0 | G114: 0 | H114: 0 | I114: 0 | J114: 0
B115: 2 | C115: Minor | D115: All | E115: Material | F115: 0 | G115: 0 | H115: 0 | I115: 0 | J115: 0
B116: 2 | C116: Minor | D116: All | E116: Contractor | F116: 0 | G116: 0 | H116: 0 | I116: 0 | J116: 0
A117: Energex | B117: All | C117: All | D117: All | E117: Labour | F117: =F105+F108+F111+F114 -> 0 | G117: 0 | H117: 0 | I117: 0 | J117: 0
B118: All | C118: All | D118: All | E118: Material | F118: =F106+F109+F112+F115 -> 0 | G118: 0 | H118: 0 | I118: 0 | J118: 0
B119: All | C119: All | D119: All | E119: Contractor | F119: 0 | G119: 0 | H119: 0 | I119: 0 | J119: 0
A120: Energex | B120: All | C120: All | D120: All | E120: All | F120: =SUM(F117:F119) -> 0 | G120: 0 | H120: 0 | I120: 0 | J120: 0
A122: Table 6 - EGX Public Lighting Capex (Direct costs)
A123: Real $2022-23 (direct costs) | F123: 100% LED deployment by 2030
F124: Forecast | G124: Forecast | H124: Forecast | I124: Forecast | J124: Forecast
A125: DNSP | B125: Rate | C125: Road | D125: Light type | E125: Cost category | F125: 2025-26 | G125: 2026-27 | H125: 2027-28 | I125: 2028-29 | J125: 2029-30
A126: Energex | B126: 1 | C126: Major | D126: All | E126: Labour | F126: =SUMIFS(F$6:F$120,$B$6:$B$120,$B126,$C$6:$C$120,$C126,$E$6:$E$120,$E126) -> 246668.7532 | G126: 252664.1743 | H126: 258659.5953 | I126: 265511.5052 | J126: 272363.415
B127: 1 | C127: Major | D127: All | E127: Material | F127: 3302673.585 | G127: 3326708.512 | H127: 3350743.44 | I127: 3378211.928 | J127: 3405680.417
B128: 1 | C128: Major | D128: All | E128: Contractor | F128: 2007517.83 | G128: 2049089.27 | H128: 2090660.71 | I128: 2138170.928 | J128: 2185681.145
A129: Energex | B129: 2A | C129: Major | D129: All | E129: Labour | F129: 0 | G129: 0 | H129: 0 | I129: 0 | J129: 0
B130: 2A | C130: Major | D130: All | E130: Material | F130: 4720472 | G130: 4720472 | H130: 4720472 | I130: 4720472 | J130: 4720472
B131: 2A | C131: Major | D131: All | E131: Contractor | F131: 606225 | G131: 606225 | H131: 606225 | I131: 606225 | J131: 606225
A132: Energex | B132: 1 | C132: Minor | D132: All | E132: Labour | F132: 165533.8178 | G132: 168064.9159 | H132: 170596.0141 | I132: 173127.1122 | J132: 175658.2103
B133: 1 | C133: Minor | D133: All | E133: Material | F133: 2305591.952 | G133: 2309797.532 | H133: 2314003.112 | I133: 2318208.693 | J133: 2322414.273
B134: 1 | C134: Minor | D134: All | E134: Contractor | F134: 1920574.143 | G134: 1938124.435 | H134: 1955674.728 | I134: 1973225.021 | J134: 1990775.313
A135: Energex | B135: 2A | C135: Minor | D135: All | E135: Labour | F135: 0 | G135: 0 | H135: 0 | I135: 0 | J135: 0
B136: 2A | C136: Minor | D136: All | E136: Material | F136: 8849625 | G136: 8849625 | H136: 8849625 | I136: 8849625 | J136: 8849625
B137: 2A | C137: Minor | D137: All | E137: Contractor | F137: 3349040 | G137: 3349040 | H137: 3349040 | I137: 3349040 | J137: 3349040
A138: Energex | B138: 1 | C138: All | D138: All | E138: Labour | F138: =SUMIFS(F$126:F$137,$B$126:$B$137,$B138,$E$126:$E$137,$E138) -> 412202.571 | G138: 420729.0902 | H138: 429255.6094 | I138: 438638.6174 | J138: 448021.6253
B139: 1 | C139: All | D139: All | E139: Material | F139: =SUMIFS(F$126:F$137,$B$126:$B$137,$B139,$E$126:$E$137,$E139) -> 5608265.536 | G139: 5636506.044 | H139: 5664746.552 | I139: 5696420.621 | J139: 5728094.689
B140: 1 | C140: All | D140: All | E140: Contractor | F140: 3928091.972 | G140: 3987213.705 | H140: 4046335.438 | I140: 4111395.949 | J140: 4176456.459
A141: Energex | B141: 2A | C141: All | D141: All | E141: Labour | F141: 0 | G141: 0 | H141: 0 | I141: 0 | J141: 0
B142: 2A | C142: All | D142: All | E142: Material | F142: 13570097 | G142: 13570097 | H142: 13570097 | I142: 13570097 | J142: 13570097
B143: 2A | C143: All | D143: All | E143: Contractor | F143: 3955265 | G143: 3955265 | H143: 3955265 | I143: 3955265 | J143: 3955265
A144: Energex | B144: All | C144: All | D144: All | E144: Labour | F144: =SUMIFS(F$6:F$120,$B$6:$B$120,$B144,$C$6:$C$120,$C144,$E$6:$E$120,$E144) -> 412202.571 | G144: 420729.0902 | H144: 429255.6094 | I144: 438638.6174 | J144: 448021.6253
B145: All | C145: All | D145: All | E145: Material | F145: 19178362.54 | G145: 19206603.04 | H145: 19234843.55 | I145: 19266517.62 | J145: 19298191.69
B146: All | C146: All | D146: All | E146: Contractor | F146: 7883356.972 | G146: 7942478.705 | H146: 8001600.438 | I146: 8066660.949 | J146: 8131721.459
A147: Energex | B147: All | C147: All | D147: All | E147: All | F147: =SUM(F144:F146) -> 27473922.08 | G147: 27569810.84 | H147: 27665699.6 | I147: 27771817.19 | J147: 27877934.77

Sheet EGX - Gross Capex
A1: 1 - This tables applies the oncosts and overheads to the capex (direct cost) for both RATE 1 and RATE 2A LED conversions funded by Energex
B2: 100% LED deployment by 2030
B3: 2025-26 | C3: 2026-27 | D3: 2027-28 | E3: 2028-29 | F3: 2029-30
A4: Direct Costs ($Real 2024-25)
A5: Labour | B5: ='EGX - Forecast capex scenarios'!F144*'Cost Escalations'!$E$21*(1+'Cost Escalations'!B30) -> 459559.3622 | C5: ='EGX - Forecast capex scenarios'!G144*'Cost Escalations'!$E$21*(1+'Cost Escalations'!C30) -> 473690.9711 | D5: ='EGX - Forecast capex scenarios'!H144*'Cost Escalations'!$E$21*(1+'Cost Escalations'!D30) -> 487371.5581 | E5: ='EGX - Forecast capex scenarios'!I144*'Cost Escalations'!$E$21*(1+'Cost Escalations'!E30) -> 503260.3836 | F5: ='EGX - Forecast capex scenarios'!J144*'Cost Escalations'!$E$21*(1+'Cost Escalations'!F30) -> 520382.9175
A6: Contractors | B6: ='EGX - Forecast capex scenarios'!F146*'Cost Escalations'!$E$21*(1+'Cost Escalations'!B26) -> 8751669.556 | C6: ='EGX - Forecast capex scenarios'!G146*'Cost Escalations'!$E$21*(1+'Cost Escalations'!C26) -> 8879906.107 | D6: ='EGX - Forecast capex scenarios'!H146*'Cost Escalations'!$E$21*(1+'Cost Escalations'!D26) -> 9000576.44 | E6: ='EGX - Forecast capex scenarios'!I146*'Cost Escalations'!$E$21*(1+'Cost Escalations'!E26) -> 9157238.149 | F6: ='EGX - Forecast capex scenarios'!J146*'Cost Escalations'!$E$21*(1+'Cost Escalations'!F26) -> 9331713.486
A7: Materials | B7: ='EGX - Forecast capex scenarios'!F145*'Cost Escalations'!$E$21 -> 21069533.73 | C7: ='EGX - Forecast capex scenarios'!G145*'Cost Escalations'!$E$21 -> 21100559.03 | D7: ='EGX - Forecast capex scenarios'!H145*'Cost Escalations'!$E$21 -> 21131584.32 | E7: ='EGX - Forecast capex scenarios'!I145*'Cost Escalations'!$E$21 -> 21166381.76 | F7: ='EGX - Forecast capex scenarios'!J145*'Cost Escalations'!$E$21 -> 21201179.19
A8: Total Direct Costs | B8: =SUM(B5:B7) -> 30280762.65 | C8: 30454156.11 | D8: 30619532.32 | E8: 30826880.29 | F8: 31053275.6
A10: Overheads & Oncosts | H10: Note: application of the overhead and on-cost rates in accordance with the EQL's Cost Allocation Methodology
A11: Fleet oncost | B11: =B5*Overheads!$D$15 -> 97261.30192 | C11: =C5*Overheads!$D$15 -> 100252.1205 | D11: =D5*Overheads!$D$15 -> 103147.4847 | E11: =E5*Overheads!$D$15 -> 106510.2012 | F11: =F5*Overheads!$D$15 -> 110134.0201
A12: Material oncosts | B12: =B7*Overheads!$D$9 -> 1836571.469 | C12: =C7*Overheads!$D$9 -> 1839275.856 | D12: =D7*Overheads!$D$9 -> 1841980.243 | E12: =E7*Overheads!$D$9 -> 1845013.437 | F12: =F7*Overheads!$D$9 -> 1848046.63
A13: Network overheads | B13: =(B8+B11+B12)*Overheads!$D$19 -> 6406450.123 | C13: =(C8+C11+C12)*Overheads!$D$19 -> 6442065.115 | D13: =(D8+D11+D12)*Overheads!$D$19 -> 6476066.752 | E13: =(E8+E11+E12)*Overheads!$D$19 -> 6518573.557 | F13: =(F8+F11+F12)*Overheads!$D$19 -> 6564920.191
A14: Non-network overheads | B14: =B5*Overheads!$D$20 -> 201513.833 | C14: =C5*Overheads!$D$20 -> 207710.4528 | D14: =D5*Overheads!$D$20 -> 213709.3025 | E14: =E5*Overheads!$D$20 -> 220676.4506 | F14: =F5*Overheads!$D$20 -> 228184.5719
A15: Non-network depreciation | B15: =B5*Overheads!$D$25 -> 67585.1552 | C15: =C5*Overheads!$D$25 -> 69663.42203 | D15: =D5*Overheads!$D$25 -> 71675.35928 | E15: =E5*Overheads!$D$25 -> 74012.05139 | F15: =F5*Overheads!$D$25 -> 76530.17897
A16: Corporate overheads | B16: =0*Overheads!$D$26 -> 0 | C16: =0*Overheads!$D$26 -> 0 | D16: =0*Overheads!$D$26 -> 0 | E16: =0*Overheads!$D$26 -> 0 | F16: =0*Overheads!$D$26 -> 0 | H16: No allocation of corporate overheads to capex
A17: Market | B17: =0*Overheads!$D$27 -> 0 | C17: =0*Overheads!$D$27 -> 0 | D17: =0*Overheads!$D$27 -> 0 | E17: =0*Overheads!$D$27 -> 0 | F17: =0*Overheads!$D$27 -> 0 | H17: No market allocation to capex
A18: Customer ops | B18: =0*Overheads!$D$28 -> 0 | C18: =0*Overheads!$D$28 -> 0 | D18: =0*Overheads!$D$28 -> 0 | E18: =0*Overheads!$D$28 -> 0 | F18: =0*Overheads!$D$28 -> 0 | H18: No customer operation allocation to capex
A19: Total | B19: =SUM(B11:B18) -> 8609381.882 | C19: 8658966.966 | D19: 8706579.141 | E19: 8764785.697 | F19: 8827815.592
A21: Total Expenditure (incl oncosts and overheads) | B21: =B8+B19 -> 38890144.53 | C21: 39113123.07 | D21: 39326111.46 | E21: 39591665.99 | F21: 39881091.19
A23: LED | B23: =('EGX - Forecast capex scenarios'!F$147-'EGX - Forecast capex scenarios'!F$54)/'EGX - Forecast capex scenarios'!F$147 -> 1 | C23: =('EGX - Forecast capex scenarios'!G$147-'EGX - Forecast capex scenarios'!G$54)/'EGX - Forecast capex scenarios'!G$147 -> 1 | D23: =('EGX - Forecast capex scenarios'!H$147-'EGX - Forecast capex scenarios'!H$54)/'EGX - Forecast capex scenarios'!H$147 -> 1 | E23: =('EGX - Forecast capex scenarios'!I$147-'EGX - Forecast capex scenarios'!I$54)/'EGX - Forecast capex scenarios'!I$147 -> 1 | F23: =('EGX - Forecast capex scenarios'!J$147-'EGX - Forecast capex scenarios'!J$54)/'EGX - Forecast capex scenarios'!J$147 -> 1
A24: CON | B24: =1-B23 -> 0 | C24: =1-C23 -> 0 | D24: 0 | E24: 0 | F24: 0
A26: LED | B26: =B23*B21 -> 38890144.53 | C26: 39113123.07 | D26: 39326111.46 | E26: 39591665.99 | F26: 39881091.19
A27: CON | B27: =B24*B21 -> 0 | C27: 0 | D27: 0 | E27: 0 | F27: 0
A29: Immediate Expensing
A31: LED | B31: =B23*B19 -> 8609381.882 | C31: 8658966.966 | D31: 8706579.141 | E31: 8764785.697 | F31: 8827815.592
A32: CON | B32: 0 | C32: 0 | D32: 0 | E32: 0 | F32: 0
A36: 2 - This tables applies the oncosts and overheads to the capex (direct cost) for RATE 1 conversions funded by Energex
B37: 100% LED deployment by 2030
B38: 2025-26 | C38: 2026-27 | D38: 2027-28 | E38: 2028-29 | F38: 2029-30
A39: Direct Costs ($Real 2024-25)
A40: Labour | B40: ='EGX - Forecast capex scenarios'!F138*'Cost Escalations'!$E$21*(1+'Cost Escalations'!B30) -> 459559.3622 | C40: ='EGX - Forecast capex scenarios'!G138*'Cost Escalations'!$E$21*(1+'Cost Escalations'!C30) -> 473690.9711 | D40: ='EGX - Forecast capex scenarios'!H138*'Cost Escalations'!$E$21*(1+'Cost Escalations'!D30) -> 487371.5581 | E40: ='EGX - Forecast capex scenarios'!I138*'Cost Escalations'!$E$21*(1+'Cost Escalations'!E30) -> 503260.3836 | F40: ='EGX - Forecast capex scenarios'!J138*'Cost Escalations'!$E$21*(1+'Cost Escalations'!F30) -> 520382.9175
A41: Contractors | B41: ='EGX - Forecast capex scenarios'!F140*'Cost Escalations'!$E$21*(1+'Cost Escalations'!B26) -> 4360751.777 | C41: ='EGX - Forecast capex scenarios'!G140*'Cost Escalations'!$E$21*(1+'Cost Escalations'!C26) -> 4457812.812 | D41: ='EGX - Forecast capex scenarios'!H140*'Cost Escalations'!$E$21*(1+'Cost Escalations'!D26) -> 4551508.376 | E41: ='EGX - Forecast capex scenarios'!I140*'Cost Escalations'!$E$21*(1+'Cost Escalations'!E26) -> 4667238.659 | F41: ='EGX - Forecast capex scenarios'!J140*'Cost Escalations'!$E$21*(1+'Cost Escalations'!F26) -> 4792773.001
A42: Materials | B42: ='EGX - Forecast capex scenarios'!F139*'Cost Escalations'!$E$21 -> 6161294.515 | C42: ='EGX - Forecast capex scenarios'!G139*'Cost Escalations'!$E$21 -> 6192319.809 | D42: ='EGX - Forecast capex scenarios'!H139*'Cost Escalations'!$E$21 -> 6223345.103 | E42: ='EGX - Forecast capex scenarios'!I139*'Cost Escalations'!$E$21 -> 6258142.539 | F42: ='EGX - Forecast capex scenarios'!J139*'Cost Escalations'!$E$21 -> 6292939.976
A43: Total Direct Costs | B43: =SUM(B40:B42) -> 10981605.65 | C43: 11123823.59 | D43: 11262225.04 | E43: 11428641.58 | F43: 11606095.89
A45: Overheads & Oncosts
A46: Fleet oncost | B46: =B40*Overheads!$D$15 -> 97261.30192 | C46: =C40*Overheads!$D$15 -> 100252.1205 | D46: =D40*Overheads!$D$15 -> 103147.4847 | E46: =E40*Overheads!$D$15 -> 106510.2012 | F46: =F40*Overheads!$D$15 -> 110134.0201
A47: Material oncosts | B47: =B42*Overheads!$D$9 -> 537062.5597 | C47: =C42*Overheads!$D$9 -> 539766.9465 | D47: =D42*Overheads!$D$9 -> 542471.3334 | E47: =E42*Overheads!$D$9 -> 545504.5272 | F47: =F42*Overheads!$D$9 -> 548537.721
A48: Network overheads | B48: =(B43+B46+B47)*Overheads!$D$19 -> 2310035.936 | C48: =(C43+C46+C47)*Overheads!$D$19 -> 2339451.117 | D48: =(D43+D46+D47)*Overheads!$D$19 -> 2368088.338 | E48: =(E43+E46+E47)*Overheads!$D$19 -> 2402455.194 | F48: =(F43+F46+F47)*Overheads!$D$19 -> 2439069.034
A49: Non-network overheads | B49: =B40*Overheads!$D$20 -> 201513.833 | C49: =C40*Overheads!$D$20 -> 207710.4528 | D49: =D40*Overheads!$D$20 -> 213709.3025 | E49: =E40*Overheads!$D$20 -> 220676.4506 | F49: =F40*Overheads!$D$20 -> 228184.5719
A50: Non-network depreciation | B50: =B40*Overheads!$D$25 -> 67585.1552 | C50: =C40*Overheads!$D$25 -> 69663.42203 | D50: =D40*Overheads!$D$25 -> 71675.35928 | E50: =E40*Overheads!$D$25 -> 74012.05139 | F50: =F40*Overheads!$D$25 -> 76530.17897
A51: Corporate overheads | B51: =0*Overheads!$D$26 -> 0 | C51: =0*Overheads!$D$26 -> 0 | D51: =0*Overheads!$D$26 -> 0 | E51: =0*Overheads!$D$26 -> 0 | F51: =0*Overheads!$D$26 -> 0 | H51: No allocation of corporate overheads to capex
A52: Market | B52: =0*Overheads!$D$27 -> 0 | C52: =0*Overheads!$D$27 -> 0 | D52: =0*Overheads!$D$27 -> 0 | E52: =0*Overheads!$D$27 -> 0 | F52: =0*Overheads!$D$27 -> 0 | H52: No market allocation to capex
A53: Customer ops | B53: =0*Overheads!$D$28 -> 0 | C53: =0*Overheads!$D$28 -> 0 | D53: =0*Overheads!$D$28 -> 0 | E53: =0*Overheads!$D$28 -> 0 | F53: =0*Overheads!$D$28 -> 0 | H53: No customer operation allocation to capex
A54: Total | B54: =SUM(B46:B53) -> 3213458.785 | C54: =SUM(C46:C53) -> 3256844.059 | D54: =SUM(D46:D53) -> 3299091.818 | E54: =SUM(E46:E53) -> 3349158.425 | F54: =SUM(F46:F53) -> 3402455.526
A56: Total Expenditure (incl oncosts and overheads) | B56: =B43+B54 -> 14195064.44 | C56: 14380667.65 | D56: 14561316.85 | E56: 14777800.01 | F56: =F43+F54 -> 15008551.42
A59: 3 - This tables applies the oncosts and overheads to the capex (direct cost) for RATE 2A conversions funded by Energex
B60: 100% LED deployment by 2030
B61: 2025-26 | C61: 2026-27 | D61: 2027-28 | E61: 2028-29 | F61: 2029-30
A62: Direct Costs ($Real 2024-25)
A63: Labour | B63: ='EGX - Forecast capex scenarios'!F141*'Cost Escalations'!$E$21*(1+'Cost Escalations'!B30) -> 0 | C63: ='EGX - Forecast capex scenarios'!G141*'Cost Escalations'!$E$21*(1+'Cost Escalations'!C30) -> 0 | D63: ='EGX - Forecast capex scenarios'!H141*'Cost Escalations'!$E$21*(1+'Cost Escalations'!D30) -> 0 | E63: ='EGX - Forecast capex scenarios'!I141*'Cost Escalations'!$E$21*(1+'Cost Escalations'!E30) -> 0 | F63: ='EGX - Forecast capex scenarios'!J141*'Cost Escalations'!$E$21*(1+'Cost Escalations'!F30) -> 0
A64: Contractors | B64: ='EGX - Forecast capex scenarios'!F143*'Cost Escalations'!$E$21*(1+'Cost Escalations'!B26) -> 4390917.779 | C64: ='EGX - Forecast capex scenarios'!G143*'Cost Escalations'!$E$21*(1+'Cost Escalations'!C26) -> 4422093.295 | D64: ='EGX - Forecast capex scenarios'!H143*'Cost Escalations'!$E$21*(1+'Cost Escalations'!D26) -> 4449068.064 | E64: ='EGX - Forecast capex scenarios'!I143*'Cost Escalations'!$E$21*(1+'Cost Escalations'!E26) -> 4489999.49 | F64: ='EGX - Forecast capex scenarios'!J143*'Cost Escalations'!$E$21*(1+'Cost Escalations'!F26) -> 4538940.485
A65: Materials | B65: ='EGX - Forecast capex scenarios'!F142*'Cost Escalations'!$E$21 -> 14908239.22 | C65: ='EGX - Forecast capex scenarios'!G142*'Cost Escalations'!$E$21 -> 14908239.22 | D65: ='EGX - Forecast capex scenarios'!H142*'Cost Escalations'!$E$21 -> 14908239.22 | E65: ='EGX - Forecast capex scenarios'!I142*'Cost Escalations'!$E$21 -> 14908239.22 | F65: ='EGX - Forecast capex scenarios'!J142*'Cost Escalations'!$E$21 -> 14908239.22
A66: Total Direct Costs | B66: =SUM(B63:B65) -> 19299157 | C66: 19330332.51 | D66: 19357307.28 | E66: 19398238.71 | F66: 19447179.7
A68: Overheads & Oncosts
A69: Fleet oncost | B69: =B63*Overheads!$D$15 -> 0 | C69: =C63*Overheads!$D$15 -> 0 | D69: =D63*Overheads!$D$15 -> 0 | E69: =E63*Overheads!$D$15 -> 0 | F69: =F63*Overheads!$D$15 -> 0
A70: Material oncosts | B70: =B65*Overheads!$D$9 -> 1299508.909 | C70: =C65*Overheads!$D$9 -> 1299508.909 | D70: =D65*Overheads!$D$9 -> 1299508.909 | E70: =E65*Overheads!$D$9 -> 1299508.909 | F70: =F65*Overheads!$D$9 -> 1299508.909
A71: Network overheads | B71: =(B66+B69+B70)*Overheads!$D$19 -> 4096414.187 | C71: =(C66+C69+C70)*Overheads!$D$19 -> 4102613.998 | D71: =(D66+D69+D70)*Overheads!$D$19 -> 4107978.415 | E71: =(E66+E69+E70)*Overheads!$D$19 -> 4116118.363 | F71: =(F66+F69+F70)*Overheads!$D$19 -> 4125851.157
A72: Non-network overheads | B72: =B63*Overheads!$D$20 -> 0 | C72: =C63*Overheads!$D$20 -> 0 | D72: =D63*Overheads!$D$20 -> 0 | E72: =E63*Overheads!$D$20 -> 0 | F72: =F63*Overheads!$D$20 -> 0
A73: Non-network depreciation | B73: =B63*Overheads!$D$25 -> 0 | C73: =C63*Overheads!$D$25 -> 0 | D73: =D63*Overheads!$D$25 -> 0 | E73: =E63*Overheads!$D$25 -> 0 | F73: =F63*Overheads!$D$25 -> 0
A74: Corporate overheads | B74: =0*Overheads!$D$26 -> 0 | C74: =0*Overheads!$D$26 -> 0 | D74: =0*Overheads!$D$26 -> 0 | E74: =0*Overheads!$D$26 -> 0 | F74: =0*Overheads!$D$26 -> 0
A75: Market | B75: =0*Overheads!$D$27 -> 0 | C75: =0*Overheads!$D$27 -> 0 | D75: =0*Overheads!$D$27 -> 0 | E75: =0*Overheads!$D$27 -> 0 | F75: =0*Overheads!$D$27 -> 0
A76: Customer ops | B76: =0*Overheads!$D$28 -> 0 | C76: =0*Overheads!$D$28 -> 0 | D76: =0*Overheads!$D$28 -> 0 | E76: =0*Overheads!$D$28 -> 0 | F76: =0*Overheads!$D$28 -> 0
A77: Total | B77: =SUM(B69:B76) -> 5395923.097 | C77: =SUM(C69:C76) -> 5402122.907 | D77: =SUM(D69:D76) -> 5407487.324 | E77: =SUM(E69:E76) -> 5415627.272 | F77: =SUM(F69:F76) -> 5425360.067
A79: Total Expenditure (incl oncosts and overheads) | B79: =B66+B77 -> 24695080.09 | C79: 24732455.42 | D79: 24764794.61 | E79: 24813865.98 | F79: =F66+F77 -> 24872539.77
B81: =B56+B79 -> 38890144.53 | C81: =C56+C79 -> 39113123.07 | D81: 39326111.46 | E81: 39591665.99 | F81: 39881091.19
B82: =B21-B81 -> 0 | C82: =C21-C81 -> 0 | D82: 0 | E82: 0 | F82: 0

Sheet >>Forecast opex

Sheet EGX - Opex BST
A1: Energex - Factors for the Base Step Trend Approach used to derive forecast opex
A3: Table 1: Forecast Volume of LED and CONV Lights
A4: Volumes | B4: 2021-22 | C4: 2022-23 | D4: 2024-25 | E4: 2025-26 | F4: 2026-27 | G4: 2027-28 | H4: 2028-29 | I4: 2029-30
A5: Conventional | E5: ='EGX - Yearly volume scenarios'!K83 -> 172291 | F5: ='EGX - Yearly volume scenarios'!L83 -> 128897 | G5: ='EGX - Yearly volume scenarios'!M83 -> 93556 | H5: ='EGX - Yearly volume scenarios'!N83 -> 58441 | I5: ='EGX - Yearly volume scenarios'!O83 -> 0
A6: LED | E6: ='EGX - Yearly volume scenarios'!K84+'EGX - Yearly volume scenarios'!K104 -> 184781 | F6: ='EGX - Yearly volume scenarios'!L84+'EGX - Yearly volume scenarios'!L104 -> 228876 | G6: ='EGX - Yearly volume scenarios'!M84+'EGX - Yearly volume scenarios'!M104 -> 264931 | H6: ='EGX - Yearly volume scenarios'!N84+'EGX - Yearly volume scenarios'!N104 -> 300775 | I6: ='EGX - Yearly volume scenarios'!O84+'EGX - Yearly volume scenarios'!O104 -> 359959
A7: Total | E7: =SUM(E5:E6) -> 357072 | F7: =SUM(F5:F6) -> 357773 | G7: =SUM(G5:G6) -> 358487 | H7: =SUM(H5:H6) -> 359216 | I7: =SUM(I5:I6) -> 359959
A9: Table 2: Base Step Trend approach
A10: 2a: Forecast Price Change
A11: Rate | B11: 2021-22 | C11: 2022-23 | D11: 2024-25 | E11: 2025-26 | F11: 2026-27 | G11: 2027-28 | H11: 2028-29 | I11: 2029-30
A12: Labour | E12: ='Cost Escalations'!B29 -> 0.01481650282 | F12: ='Cost Escalations'!C29 -> 0.009861100793 | G12: ='Cost Escalations'!D29 -> 0.008443651806 | H12: ='Cost Escalations'!E29 -> 0.01051247269 | I12: ='Cost Escalations'!F29 -> 0.01236745202
A13: Contractor | E13: ='Cost Escalations'!B25 -> 0.0105 | F13: ='Cost Escalations'!C25 -> 0.0071 | G13: ='Cost Escalations'!D25 -> 0.0061 | H13: ='Cost Escalations'!E25 -> 0.0092 | I13: ='Cost Escalations'!F25 -> 0.0109
A14: Materials/other | E14: 0 | F14: 0 | G14: 0 | H14: 0 | I14: 0
A16: 2b: Weights
A17: Rate | B17: 2021-22 | C17: 2022-23 | D17: 2024-25 | E17: 2025-26 | F17: 2026-27 | G17: 2027-28 | H17: 2028-29 | I17: 2029-30
A18: Labour | E18: =SUM('EGX - Forecast Opex'!B4,'EGX - Forecast Opex'!B9)/(SUM('EGX - Forecast Opex'!B4:B12)-'EGX - Forecast Opex'!B15) -> 0.114954665 | F18: =E18 -> 0.114954665 | G18: 0.114954665 | H18: 0.114954665 | I18: 0.114954665
A19: Contractor | E19: =SUM('EGX - Forecast Opex'!B5,'EGX - Forecast Opex'!B10)/(SUM('EGX - Forecast Opex'!B4:B12)-'EGX - Forecast Opex'!B15) -> 0.6365563133 | F19: 0.6365563133 | G19: 0.6365563133 | H19: 0.6365563133 | I19: 0.6365563133
A20: Materials/other | E20: =(SUM('EGX - Forecast Opex'!B6,'EGX - Forecast Opex'!B7,'EGX - Forecast Opex'!B11,'EGX - Forecast Opex'!B12)-'EGX - Forecast Opex'!B15)/(SUM('EGX - Forecast Opex'!B3:B12)-'EGX - Forecast Opex'!B15) -> 0.2484890217 | F20: 0.2484890217 | G20: 0.2484890217 | H20: 0.2484890217 | I20: 0.2484890217
A22: 2c: Price Change
A23: Rate | B23: 2021-22 | C23: 2022-23 | D23: 2024-25 | E23: 2025-26 | F23: 2026-27 | G23: 2027-28 | H23: 2028-29 | I23: 2029-30
A24: Rate | E24: =SUMPRODUCT(E12:E14,E18:E20) -> 0.008387067408 | F24: =SUMPRODUCT(F12:F14,F18:F20) -> 0.005653129363 | G24: =SUMPRODUCT(G12:G14,G18:G20) -> 0.004853630676 | H24: =SUMPRODUCT(H12:H14,H18:H20) -> 0.007064775859 | I24: =SUMPRODUCT(I12:I14,I18:I20) -> 0.008360160119
A26: 2d: Forecast Output Growth
A27: Rate | B27: 2021-22 | C27: 2022-23 | D27: 2024-25 | E27: 2025-26 | F27: 2026-27 | G27: 2027-28 | H27: 2028-29 | I27: 2029-30
A28: Light Population | D28: ='EGX - Yearly volume scenarios'!J85 -> 344949 | E28: ='EGX - Yearly volume scenarios'!K85+'EGX - Yearly volume scenarios'!K104 -> 357072 | F28: ='EGX - Yearly volume scenarios'!L85+'EGX - Yearly volume scenarios'!L104 -> 357773 | G28: ='EGX - Yearly volume scenarios'!M85+'EGX - Yearly volume scenarios'!M104 -> 358487 | H28: ='EGX - Yearly volume scenarios'!N85+'EGX - Yearly volume scenarios'!N104 -> 359216 | I28: ='EGX - Yearly volume scenarios'!O85+'EGX - Yearly volume scenarios'!O104 -> 359959
A29: Growth Rate | E29: =LN(E28)-LN(D28) -> 0.0345408621 | F29: =LN(F28)-LN(E28) -> 0.001961264959 | G29: =LN(G28)-LN(F28) -> 0.001993690103 | H29: =LN(H28)-LN(G28) -> 0.002031481687 | I29: =LN(I28)-LN(H28) -> 0.00206625721
A30: Factor | D30: =1-(SUM('EGX - Forecast Opex'!C4:C7)/SUM('EGX - Forecast Opex'!C3:C12)) -> 0.2055334709 | E30: =SUMPRODUCT($D$30,E29) -> 0.007099303276 | F30: =SUMPRODUCT($D$30,F29) -> 0.0004031055943 | G30: =SUMPRODUCT($D$30,G29) -> 0.0004097700467 | H30: =SUMPRODUCT($D$30,H29) -> 0.0004175374823 | I30: =SUMPRODUCT($D$30,I29) -> 0.0004246850161
A32: 2e: Productivity Factor
A33: Rate | B33: 2021-22 | C33: 2022-23 | D33: 2024-25 | E33: 2025-26 | F33: 2026-27 | G33: 2027-28 | H33: 2028-29 | I33: 2029-30
A34: Rate | D34: 0.04 | E34: =D34 -> 0.04 | F34: =E34 -> 0.04 | G34: 0.04 | H34: 0.04 | I34: 0.04
A36: 2f: Forecast Rate of Change
A37: Rate | B37: 2021-22 | C37: 2022-23 | D37: 2024-25 | E37: 2025-26 | F37: 2026-27 | G37: 2027-28 | H37: 2028-29 | I37: 2029-30
A38: Rate of Change - year on year | E38: =(1+E24)*(1+E30)*(1-E34)-1 -> -0.0250759235 | F38: =(1+F24)*(1+F30)*(1-F34)-1 -> -0.03418382679 | G38: =(1+G24)*(1+G30)*(1-G34)-1 -> -0.03494522599 | H38: =(1+H24)*(1+H30)*(1-H34)-1 -> -0.03281414738 | I38: =(1+I24)*(1+I30)*(1-I34)-1 -> -0.03156314025
A39: Rate of Change - Cumulative | E39: =PRODUCT(1+$D38:E38)-1 -> -0.0250759235 | F39: =PRODUCT(1+$D38:F38)-1 -> -0.05840255926 | G39: =PRODUCT(1+$D38:G38)-1 -> -0.09130689462 | H39: =PRODUCT(1+$D38:H38)-1 -> -0.1211248841 | I39: =PRODUCT(1+$D38:I38)-1 -> -0.1488649426

Sheet EGX - Forecast Opex
A1: Table 1 - Opex Direct Costs | B1: Actual | C1: Forecast
A2: Opex Direct Costs | B2: 2022-23 | C2: 2024-25 | D2: 2025-26 | E2: 2026-27 | F2: 2027-28 | G2: 2028-29 | H2: 2029-30
A3: Maintenance | B3: Adjusted
A4: Labour | B4: 871863.59 | C4: =B4*'Cost Escalations'!$E$21 -> 957837.7343
A5: Contractor | B5: 6530695.45 | C5: =B5*'Cost Escalations'!$E$21 -> 7174684.899
A6: Materials | B6: 1898621.26 | C6: =B6*'Cost Escalations'!$E$21 -> 2085843.596
A7: Other | B7: 1011.36 | C7: =B7*'Cost Escalations'!$E$21 -> 1111.089833
A8: Damage/Emergency
A9: Labour | B9: 554577.46 | C9: =B9*'Cost Escalations'!$E$21 -> 609264.1371
A10: Contractor | B10: 1368158.03 | C10: =B10*'Cost Escalations'!$E$21 -> 1503071.584
A11: Materials | B11: 476783.69 | C11: =B11*'Cost Escalations'!$E$21 -> 523799.1523
A12: Other | B12: 7016.11 | C12: =B12*'Cost Escalations'!$E$21 -> 7707.965998
A13: Total direct opex | B13: 11708726.95 | C13: =SUM(C4:C12) -> 12863320.16
A14: Adjustments (material costs)
A15: LED Lamps | B15: -700000 | C15: =B15*'Cost Escalations'!$E$21 -> -769026.7397
A16: Base Opex | B16: =+B15+B13 -> 11008726.95 | C16: =C13+C15 -> 12094293.42
A17: Notes:
A18: Material costs removed to reflect the fact that, upon failure, the LED luminaire is replaced and becomes capex
A20: Overheads & Oncosts
A21: Labour oncost | C21: 0
A22: Fleet oncost | C22: =(C4+C9)*Overheads!D15 -> 331661.9805
A23: Material oncosts | C23: =(C6+C11+C15)*Overheads!D9 -> 160441.2746
A24: Network overheads | C24: =(C16+C21+C22+C23)*Overheads!D19 -> 2503030.737
A25: Non-network overheads | C25: =(C4+C9)*Overheads!D20 -> 687164.1201
A26: Non-network depreciation | C26: =(C4+C9)*Overheads!D25 -> 230466.0331
A27: Corporate overheads | C27: =($C$16+$C$22+$C$23)*Overheads!D26 -> 1585449.215
A28: Market | C28: =($C$16+$C$22+$C$23)*Overheads!D27 -> 91131.02532
A29: Customer ops | C29: =($C$16+$C$22+$C$23)*Overheads!D28 -> 762955.1004
A30: Total | C30: =SUM(C21:C29) -> 6352299.487
A31: Base Opex (Gross) | C31: =C16+C30 -> 18446592.91
A33: Table 2 - Forecast Opex (Gross)
A34: Forecast opex | B34: 2022-23 | C34: 2024-25 | D34: 2025-26 | E34: 2026-27 | F34: 2027-28 | G34: 2028-29 | H34: 2029-30
A35: CONV opex | D35: =D37*('EGX - Opex BST'!E5/'EGX - Opex BST'!E7) -> 8677482.668 | E35: =E37*('EGX - Opex BST'!F5/'EGX - Opex BST'!F7) -> 6257727.968 | F35: =F37*('EGX - Opex BST'!G5/'EGX - Opex BST'!G7) -> 4374532.329 | G35: =G37*('EGX - Opex BST'!H5/'EGX - Opex BST'!H7) -> 2637577.916 | H35: =H37*('EGX - Opex BST'!I5/'EGX - Opex BST'!I7) -> 0
A36: LED opex | D36: =D37*('EGX - Opex BST'!E6/'EGX - Opex BST'!E7) -> 9306544.886 | E36: =E37*('EGX - Opex BST'!F6/'EGX - Opex BST'!F7) -> 11111536.7 | F36: =F37*('EGX - Opex BST'!G6/'EGX - Opex BST'!G7) -> 12387759.46 | G36: =G37*('EGX - Opex BST'!H6/'EGX - Opex BST'!H7) -> 13574673.56 | H36: =H37*('EGX - Opex BST'!I6/'EGX - Opex BST'!I7) -> 15700541.91
A37: Total | D37: =C31*(1+'EGX - Opex BST'!E39) -> 17984027.55 | E37: =$C$31*(1+'EGX - Opex BST'!F39) -> 17369264.67 | F37: =$C$31*(1+'EGX - Opex BST'!G39) -> 16762291.79 | G37: =$C$31*(1+'EGX - Opex BST'!H39) -> 16212251.48 | H37: =$C$31*(1+'EGX - Opex BST'!I39) -> 15700541.91
